Workbook

Sheet GWP Project Summary
B1: updated 06/28/2023
B2: Total Building Area | E2: sf
B4: GWP Summary | New and major renovation project (Project total is only Construction Materials) | K4: GWP Summary | Interior project (Project total is Construction Materials, Casework & Furniture)
B5: This summary will be compared to the AIA COTE embodied carbon baseline. | K5: This summary will be compared to the CLF 2019 interior project embodied carbon baseline.
D6: GWP / sf (lbs CO2eq/sf) | F6: New vs Salvaged | H6: Impact compared to total project | M6: GWP / sf (lbs CO2eq/sf) | P6: New vs Salvaged | R6: Impact compared to total project
M7: initial | N7: multiplied by # refreshes
B8: 03 - Concrete | K8: 03 - Concrete
C9: New | D9: ='GWP Calculator | Building'!$F$6 ->  | F9: =ROUND($D$9/$D$11,3) ->  | H9: =$D$9/$D$64 ->  | L9: New | M9: ='GWP Calculator | Building'!$F$19 ->  | N9: =$M$9*#REF! ->  | P9: =ROUND($M$9/$M$11,3) ->  | R9: =$M$9/$M$64 -> 
C10: Salvaged | D10: ='GWP Calculator | Building'!$K$6 ->  | F10: =ROUND($D$10/$D$11,3) ->  | H10: =$D$10/$D$64 ->  | L10: Salvaged | M10: ='GWP Calculator | Building'!$K$19 ->  | N10: =$M$10*#REF! ->  | P10: =ROUND($M$10/$M$11,3) ->  | R10: =$M$10/$M$64 -> 
C11: New + Salvaged | D11: ='GWP Calculator | Building'!$O$6 ->  | H11: =$D$11/$D$64 ->  | L11: New + Salvaged | M11: ='GWP Calculator | Building'!$O$19 ->  | N11: =$M$11*#REF! ->  | R11: =$M$11/$M$64 -> 
F12: =SUM($F$9:$F$10) ->  | H12: =SUM($H$9:$H$10) ->  | I12: QA check | P12: =SUM($P$9:$P$10) ->  | R12: =SUM($R$9:$R$10) ->  | S12: QA check
B13: 04 - Masonry | K13: 04 - Masonry
C14: New | D14: ='GWP Calculator | Building'!$F$7 ->  | F14: =ROUND($D$14/$D$16,3) ->  | H14: =$D$14/$D$64 ->  | L14: New | M14: ='GWP Calculator | Building'!$F$20 ->  | N14: =$M$14*#REF! ->  | P14: =ROUND($M$14/$M$16,3) ->  | R14: =$M$14/$M$64 -> 
C15: Salvaged | D15: ='GWP Calculator | Building'!$K$7 ->  | F15: =ROUND($D$15/$D$16,3) ->  | H15: =$D$15/$D$64 ->  | L15: Salvaged | M15: ='GWP Calculator | Building'!$K$20 ->  | N15: =$M$15*#REF! ->  | P15: =ROUND($M$15/$M$16,3) ->  | R15: =$M$15/$M$64 -> 
C16: New + Salvaged | D16: ='GWP Calculator | Building'!$O$7 ->  | H16: =$D$16/$D$64 ->  | L16: New + Salvaged | M16: ='GWP Calculator | Building'!$O$20 ->  | N16: =$M$16*#REF! ->  | R16: =$M$16/$M$64 -> 
F17: =SUM($F$19:$F$20) ->  | H17: =SUM($H$14:$H$15) ->  | I17: QA check | P17: =SUM(P14:P15) ->  | R17: =SUM($R$14:$R$15) ->  | S17: QA check
B18: 05 - Metals | K18: 05 - Metals
C19: New | D19: ='GWP Calculator | Building'!$F$8 ->  | F19: =ROUND($D$19/$D$21,3) ->  | H19: =$D$19/$D$64 ->  | L19: New | M19: ='GWP Calculator | Building'!$F$21 ->  | N19: =$M$19*#REF! ->  | P19: =ROUND($M$19/$M$21,3) ->  | R19: =$M$19/$M$64 -> 
C20: Salvaged | D20: ='GWP Calculator | Building'!$K$8 ->  | F20: =ROUND($D$20/$D$21,3) ->  | H20: =$D$20/$D$64 ->  | L20: Salvaged | M20: ='GWP Calculator | Building'!$K$21 ->  | N20: =$M$20*#REF! ->  | P20: =ROUND($M$20/$M$21,3) ->  | R20: =$M$20/$M$64 -> 
C21: New + Salvaged | D21: ='GWP Calculator | Building'!$O$8 ->  | H21: =$D$21/$D$64 ->  | L21: New + Salvaged | M21: ='GWP Calculator | Building'!$O$21 ->  | N21: =$M$21*#REF! ->  | R21: =$M$21/$M$64 -> 
F22: =SUM($F$19:$F$20) ->  | H22: =SUM($H$19:$H$20) ->  | I22: QA check | P22: =SUM($P$19:$P$20) ->  | R22: =SUM($R$19:$R$20) ->  | S22: QA check
B23: 06 - Wood/Plastics/Composites | K23: 06 - Wood/Plastics/Composites
C24: New | D24: ='GWP Calculator | Building'!$F$9 ->  | F24: =ROUND($D$24/$D$26,3) ->  | H24: =$D$24/$D$64 ->  | L24: New | M24: ='GWP Calculator | Building'!$F$22 ->  | N24: =$M$24*#REF! ->  | P24: =ROUND($M$24/$M$26,3) ->  | R24: =$M$24/$M$64 -> 
C25: Salvaged | D25: ='GWP Calculator | Building'!$K$9 ->  | F25: =ROUND($D$25/$D$26,3) ->  | H25: =$D$25/$D$64 ->  | L25: Salvaged | M25: ='GWP Calculator | Building'!$K$22 ->  | N25: =$M$25*#REF! ->  | P25: =ROUND($M$25/$M$26,3) ->  | R25: =$M$25/$M$64 -> 
C26: New + Salvaged | D26: ='GWP Calculator | Building'!$O$9 ->  | H26: =$D$26/$D$64 ->  | L26: New + Salvaged | M26: ='GWP Calculator | Building'!$O$22 ->  | N26: =$M$26*#REF! ->  | R26: =$M$26/$M$64 -> 
F27: =SUM($F$24:$F$25) ->  | H27: =SUM($H$24:$H$25) ->  | I27: QA check | P27: =SUM($P$24:$P$25) ->  | R27: =SUM($R$24:$R$25) ->  | S27: QA check
B28: 07 - Thermal and Moisture Protection | K28: 07 - Thermal and Moisture Protection
C29: New | D29: ='GWP Calculator | Building'!$F$10 ->  | F29: =ROUND($D$29/$D$31,3) ->  | H29: =$D$29/$D$64 ->  | L29: New | M29: ='GWP Calculator | Building'!$F$23 ->  | N29: =$M$29*#REF! ->  | P29: =ROUND($M$29/$M$31,3) ->  | R29: =$M$29/$M$64 -> 
C30: Salvaged | D30: ='GWP Calculator | Building'!$K$10 ->  | F30: =ROUND($D$30/$D$31,3) ->  | H30: =$D$30/$D$64 ->  | L30: Salvaged | M30: ='GWP Calculator | Building'!$K$23 ->  | N30: =$M$30*#REF! ->  | P30: =ROUND($M$30/$M$31,3) ->  | R30: =$M$30/$M$64 -> 
C31: New + Salvaged | D31: ='GWP Calculator | Building'!$O$10 ->  | H31: =$D$31/$D$64 ->  | L31: New + Salvaged | M31: ='GWP Calculator | Building'!$O$23 ->  | N31: =$M$31*#REF! ->  | R31: =$M$31/$M$64 -> 
F32: =SUM($F$29:$F$30) ->  | H32: =SUM($H$29:$H$30) ->  | I32: QA check | P32: =SUM($P$29:$P$30) ->  | R32: =SUM($R$29:$R$30) ->  | S32: QA check
B33: 08 - Openings and Glazing | K33: 08 - Openings and Glazing
C34: New | D34: ='GWP Calculator | Building'!$F$11 ->  | F34: =ROUND($D$34/$D$36,3) ->  | H34: =$D$34/$D$64 ->  | L34: New | M34: ='GWP Calculator | Building'!$F$24 ->  | N34: =$M$34*#REF! ->  | P34: =ROUND($M$34/$M$36,3) ->  | R34: =$M$34/$M$64 -> 
C35: Salvaged | D35: ='GWP Calculator | Building'!$K$11 ->  | F35: =ROUND($D$35/$D$36,3) ->  | H35: =$D$35/$D$64 ->  | L35: Salvaged | M35: ='GWP Calculator | Building'!$K$24 ->  | N35: =$M$35*#REF! ->  | P35: =ROUND($M$35/$M$36,3) ->  | R35: =$M$35/$M$64 -> 
C36: New + Salvaged | D36: ='GWP Calculator | Building'!$O$11 ->  | H36: =$D$36/$D$64 ->  | L36: New + Salvaged | M36: ='GWP Calculator | Building'!$O$24 ->  | N36: =$M$36*#REF! ->  | R36: =$M$36/$M$64 -> 
F37: =SUM($F$34:$F$35) ->  | H37: =SUM($H$34:$H$35) ->  | I37: QA check | P37: =SUM($P$34:$P$35) ->  | R37: =SUM($R$34:$R$35) ->  | S37: QA check
B38: 09 - Finishes | K38: 09 - Finishes
C39: New | D39: ='GWP Calculator | Building'!$F$12 ->  | F39: =ROUND($D$39/$D$41,3) ->  | H39: =$D$39/$D$64 ->  | L39: New | M39: ='GWP Calculator | Building'!$F$25 ->  | N39: =$M$39*#REF! ->  | P39: =ROUND($M$39/$M$41,3) ->  | R39: =$M$39/$M$64 -> 
C40: Salvaged | D40: ='GWP Calculator | Building'!$K$12 ->  | F40: =ROUND($D$40/$D$41,3) ->  | H40: =$D$40/$D$64 ->  | L40: Salvaged | M40: ='GWP Calculator | Building'!$K$25 ->  | N40: =$M$40*#REF! ->  | P40: =ROUND($M$40/$M$41,3) ->  | R40: =$M$40/$M$64 -> 
C41: New + Salvaged | D41: ='GWP Calculator | Building'!$O$12 ->  | H41: =$D$41/$D$64 ->  | L41: New + Salvaged | M41: ='GWP Calculator | Building'!$O$25 ->  | N41: =$M$41*#REF! ->  | R41: =$M$41/$M$64 -> 
F42: =SUM($F$39:$F$40) ->  | H42: =SUM($H$39:$H$40) ->  | I42: QA check | P42: =SUM($P$39:$P$40) ->  | R42: =SUM($R$39:$R$40) ->  | S42: QA check
B43: Construction Materials | K43: Construction Materials
C44: New | D44: ='GWP Calculator | Building'!$F$13 ->  | F44: =ROUND($D$44/$D$46,3) ->  | H44: =$D$44/$D$64 ->  | L44: New | M44: ='GWP Calculator | Building'!$F$26 ->  | N44: =$M$44*#REF! ->  | P44: =ROUND($M$44/$M$46,3) ->  | R44: =$M$44/$M$64 -> 
C45: Salvaged | D45: ='GWP Calculator | Building'!$K$13 ->  | F45: =ROUND($D$45/$D$46,3) ->  | H45: =$D$45/$D$64 ->  | L45: Salvaged | M45: ='GWP Calculator | Building'!$K$26 ->  | N45: =$M$45*#REF! ->  | P45: =ROUND($M$45/$M$46,3) ->  | R45: =$M$45/$M$64 -> 
C46: New + Salvaged | D46: ='GWP Calculator | Building'!$O$13 ->  | H46: =$D$46/$D$64 ->  | L46: New + Salvaged | M46: ='GWP Calculator | Building'!$O$26 ->  | N46: =$M$46*#REF! ->  | R46: =$M$46/$M$64 -> 
F47: =SUM($F$44:$F$45) ->  | H47: =SUM(H44:H45) ->  | I47: QA check | P47: =SUM($P$44:$P$45) ->  | R47: =SUM($R$44:$R$45) ->  | S47: QA check
K48: Casework
L49: New | M49: ='GWP Calculator | Casework '!$E$6 ->  | N49: =$M$49*#REF! ->  | P49: =ROUND($M$49/$M$51,3) ->  | R49: =$M$49/$M$64 -> 
L50: Salvaged | M50: ='GWP Calculator | Casework '!$E$7 ->  | N50: =$M$50*#REF! ->  | P50: =ROUND($M$50/$M$51,3) ->  | R50: =$M$50/$M$64 -> 
L51: New + Salvaged | M51: ='GWP Calculator | Casework '!$E$8 ->  | N51: =$M$51*#REF! ->  | R51: =$M$51/$M$64 -> 
P52: =SUM($P$49:$P$50) ->  | R52: =SUM($R$49:$R$50) ->  | S52: QA check
K53: Furniture
L54: New | M54: ='GWP Calculator | Furniture '!$C$5 ->  | N54: =$M$54*#REF! ->  | P54: =ROUND($M$54/$M$56,3) ->  | R54: =$M$54/$M$64 -> 
L55: Salvaged | M55: ='GWP Calculator | Furniture '!$C$6 ->  | N55: =$M$55*#REF! ->  | P55: =ROUND($M$55/$M$56,3) ->  | R55: =$M$55/$M$64 -> 
L56: New + Salvaged | M56: ='GWP Calculator | Furniture '!$C$7 ->  | N56: =$M$56*#REF! ->  | R56: =$M$56/$M$64 -> 
P57: =SUM($P$54:$P$55) ->  | R57: =SUM($R$54:$R$55) ->  | S57: QA check
B59: Project Total | K59: Project Total
D60: GWP / sf (lbs CO2eq/sf) | F60: New vs Salvaged | M60: GWP / sf (lbs CO2eq/sf) | P60: New vs Salvaged
M61: Interior Lifetime | N61: multiplied by # refreshes
C62: New | D62: =$D$44 ->  | F62: =ROUND($D$62/$D$64,3) ->  | L62: New | M62: =$M$44+$M$49+$M$54 ->  | N62: =$N$44+$N$49+$N$54 ->  | P62: =ROUND($M$62/$M$64,3) ->  | R62: =ROUND($R$44+$R$49+$R$54,3) ->  | S62: QA check (sum of C.M. + casework + furniture)
C63: Salvaged | D63: =$D$45 ->  | F63: =ROUND($D$63/$D$64,3) ->  | L63: Salvaged | M63: =$M$45+$M$50+$M$55 ->  | N63: =$N$45+$N$50+$N$55 ->  | P63: =ROUND($M$63/$M$64,3) ->  | R63: =ROUND($R$45+$R$50+$R$55,3) ->  | S63: QA check (sum of C.M. + casework + furniture)
C64: New + Salvaged | D64: =$D$46 ->  | L64: New + Salvaged | M64: =$M$46+$M$51+$M$56 ->  | N64: =$N$46+$N$51+$N$56 -> 
D65: =$D$62+$D$63 ->  | F65: =SUM($F$62:$F$63) ->  | M65: =$M$62+$M$63 ->  | N65: =$N$62+$N$63 ->  | P65: =SUM($P$62:$P$63) ->  | R65: =$R$46+$R$51+$R$56 ->  | S65: QA check (sum of New + Salvaged)
C66: QA check (total of individual divisions) | L66: QA check (total of individual divisions + caseweork + furniture)
C67: new | D67: =$D$9+$D$14+$D$19+$D$24+$D$29+$D$34+$D$39 ->  | F67: =$H$9+$H$14+$H$19+$H$24+$H$29+$H$34+$H$39 ->  | L67: new | M67: =$M$9+$M$14+$M$19+$M$24+$M$29+$M$34+$M$39+$M$49+$M$54 ->  | P67: =$R$9+$R$14+$R$19+$R$24+$R$29+$R$34+$R$39+$R$49+$R$54 -> 
C68: salvaged | D68: =$D$10+$D$15+$D$20+$D$25+$D$30+$D$35+$D$40 ->  | F68: =$H$10+$H$15+$H$20+$H$25+$H$30+$H$35+$H$40 ->  | L68: salvaged | M68: =$M$10+$M$15+$M$20+$M$25+$M$30+$M$35+$M$40+$M$50+$M$55 ->  | P68: =$R$10+$R$15+$R$20+$R$25+$R$30+$R$35+$R$40+$R$50+$R$55 -> 
C69: New + Salvaged | D69: =$D$11+$D$16+$D$21+$D$26+$D$31+$D$36+$D$41 ->  | F69: =$H$11+$H$16+$H$21+$H$26+$H$31+$H$36+$H$41 ->  | L69: New + Salvaged | M69: =$M$11+$M$16+$M$21+$M$26+$M$31+$M$36+$M$41+$M$51+$M$56 ->  | P69: =$R$11+$R$16+$R$21+$R$26+$R$31+$R$36+$R$41+$R$51+$R$56 -> 
E70: `

Sheet GWP Calculator | Building
B1: updated 06/28/2023
B2: !!! Warning | enter GWP Total numbers from Tally Excel export (Not from PDF) !!!
B3: Construction GWP Impact | New and major renovation project (Tally output. Set building lifetime in tally to 60 years unless noted otherwise on the Common App_MSR version tab)
C4: New | H4: Salvaged (if applicable) | M4: New + Salvaged
C5: GWP % | D5: GWP Total (kgCO2e) | E5: Conversion of kg to lb | F5: lbs per sf | H5: GWP % | I5: GWP Total (kgCO2e) | J5: Conversion of kg to lb | K5: lbs per sf | M5: GWP Total (kgCO2e) | N5: Conversion of kg to lb | O5: lbs per sf | P5: QA check
B6: 03 - Concrete | C6: =$D6/$D$13 ->  | E6: =ROUND(CONVERT($D$6,"kg","lbm"),3) -> 0.000 | F6: =$E$6/Area_TotalBuilding ->  | H6: =I6/$I$13 ->  | J6: =ROUND(CONVERT($I$6,"kg","lbm"),3) -> 0.000 | K6: =$J$6/Area_TotalBuilding ->  | M6: =$D$6+$I$6 -> 0.000 | N6: =ROUND(CONVERT($M$6,"kg","lbm"),3) -> 0.000 | O6: =$N$6/Area_TotalBuilding ->  | P6: =$F$6+$K$6 -> 
B7: 04 - Masonry | E7: =ROUND(CONVERT($D$7,"kg","lbm"),3) -> 0.000 | F7: =$E$7/Area_TotalBuilding ->  | H7: =I7/$I$13 ->  | J7: =ROUND(CONVERT($I$7,"kg","lbm"),3) -> 0.000 | K7: =$J$7/Area_TotalBuilding ->  | M7: =$D$7+$I$7 -> 0.000 | N7: =ROUND(CONVERT($M$7,"kg","lbm"),3) -> 0.000 | O7: =$N$7/Area_TotalBuilding ->  | P7: =$F$7+$K$7 -> 
B8: 05 - Metals | E8: =ROUND(CONVERT($D$8,"kg","lbm"),3) -> 0.000 | F8: =$E$8/Area_TotalBuilding ->  | H8: =I8/$I$13 ->  | J8: =ROUND(CONVERT($I$8,"kg","lbm"),3) -> 0.000 | K8: =$J$8/Area_TotalBuilding ->  | M8: =$D$8+$I$8 -> 0.000 | N8: =ROUND(CONVERT($M$8,"kg","lbm"),3) -> 0.000 | O8: =$N$8/Area_TotalBuilding ->  | P8: =$F$8+$K$8 -> 
B9: 06 - Wood/Plastics/Composites | E9: =ROUND(CONVERT($D$9,"kg","lbm"),3) -> 0.000 | F9: =$E$9/Area_TotalBuilding ->  | H9: =I9/$I$13 ->  | J9: =ROUND(CONVERT($I$9,"kg","lbm"),3) -> 0.000 | K9: =$J$9/Area_TotalBuilding ->  | M9: =$D$9+$I$9 -> 0.000 | N9: =ROUND(CONVERT($M$9,"kg","lbm"),3) -> 0.000 | O9: =$N$9/Area_TotalBuilding ->  | P9: =$F$9+$K$9 -> 
B10: 07 - Thermal and Moisture Protection | E10: =ROUND(CONVERT($D$10,"kg","lbm"),3) -> 0.000 | F10: =$E$10/Area_TotalBuilding ->  | H10: =I10/$I$13 ->  | J10: =ROUND(CONVERT($I$10,"kg","lbm"),3) -> 0.000 | K10: =$J$10/Area_TotalBuilding ->  | M10: =$D$10+$I$10 -> 0.000 | N10: =ROUND(CONVERT($M$10,"kg","lbm"),3) -> 0.000 | O10: =$N$10/Area_TotalBuilding ->  | P10: =$F$10+$K$10 -> 
B11: 08 - Openings and Glazing | E11: =ROUND(CONVERT($D$11,"kg","lbm"),3) -> 0.000 | F11: =$E$11/Area_TotalBuilding ->  | H11: =I11/$I$13 ->  | J11: =ROUND(CONVERT($I$11,"kg","lbm"),3) -> 0.000 | K11: =$J$11/Area_TotalBuilding ->  | M11: =$D$11+$I$11 -> 0.000 | N11: =ROUND(CONVERT($M$11,"kg","lbm"),3) -> 0.000 | O11: =$N$11/Area_TotalBuilding ->  | P11: =$F$11+$K$11 -> 
B12: 09 - Finishes | E12: =ROUND(CONVERT($D$12,"kg","lbm"),3) -> 0.000 | F12: =$E$12/Area_TotalBuilding ->  | H12: =I12/$I$13 ->  | J12: =ROUND(CONVERT($I$12,"kg","lbm"),3) -> 0.000 | K12: =$J$12/Area_TotalBuilding ->  | M12: =$D$12+$I$12 -> 0.000 | N12: =ROUND(CONVERT($M$12,"kg","lbm"),3) -> 0.000 | O12: =$N$12/Area_TotalBuilding ->  | P12: =$F$12+$K$12 -> 
B13: Total | C13: =ROUND(SUM($C$6:$C$12),3) ->  | E13: =ROUND(CONVERT($D$13,"kg","lbm"),3) -> 0.000 | F13: =$E$13/Area_TotalBuilding ->  | H13: =ROUND(SUM($H$6:$H$12),3) ->  | J13: =ROUND(CONVERT($I$13,"kg","lbm"),3) -> 0.000 | K13: =$J$13/Area_TotalBuilding ->  | M13: =$D$13+$I$13 -> 0.000 | N13: =ROUND(CONVERT($M$13,"kg","lbm"),3) -> 0.000 | O13: =$N$13/Area_TotalBuilding ->  | P13: =$F$13+$K$13 -> 
B14: QA check | D14: =ROUND(SUM($D$6:$D$12),3) -> 0.000 | E14: =SUM($E$6:$E$12) -> 0.000 | F14: =SUM($F$6:$F$12) ->  | I14: =ROUND(SUM(I6:I12),3) -> 0.000 | J14: =SUM($J$6:$J$12) -> 0.000 | K14: =SUM($K$6:$K$12) ->  | M14: =SUM($M$6:M$12) -> 0.000 | N14: =ROUND(SUM($N$6:$N$12),3) -> 0.000 | O14: =SUM($O$6:$O$12) ->  | P14: =SUM($P$6:$P$12) -> 
B15: !!! Warning | enter GWP Total numbers from Tally Excel export (Not from PDF) !!!
B16: Construction GWP Impact | Interior project (Tally output numbers. Set building lifetime in tally to 15 years unless noted otherwise on the Common App_MSR version tab)
C17: New | H17: Salvaged (if applicable) | M17: New + Salvaged
C18: GWP % | D18: GWP Total (kgCO2e) | E18: Conversion of kg to lb | F18: lbs per sf | H18: GWP % | I18: GWP Total (kgCO2e) | J18: Conversion of kg to lb | K18: lbs per sf | M18: GWP Total (kgCO2e) | N18: Conversion of kg to lb | O18: lbs per sf | P18: QA check
B19: 03 - Concrete | C19: =$D19/$D$26 ->  | E19: =ROUND(CONVERT($D$19,"kg","lbm"),3) -> 0.000 | F19: =$E$19/Area_TotalBuilding ->  | H19: =I19/$I$26 ->  | J19: =ROUND(CONVERT($I$19,"kg","lbm"),3) -> 0.000 | K19: =$J$19/Area_TotalBuilding ->  | M19: =$D$19+$I$19 -> 0.000 | N19: =ROUND(CONVERT($M$19,"kg","lbm"),3) -> 0.000 | O19: =$N$19/Area_TotalBuilding ->  | P19: =$F$6+$K$6 -> 
B20: 04 - Masonry | C20: =$D20/$D$26 ->  | E20: =ROUND(CONVERT($D$20,"kg","lbm"),3) -> 0.000 | F20: =$E$20/Area_TotalBuilding ->  | H20: =I20/$I$26 ->  | J20: =ROUND(CONVERT($I$20,"kg","lbm"),3) -> 0.000 | K20: =$J$20/Area_TotalBuilding ->  | M20: =$D$20+$I$20 -> 0.000 | N20: =ROUND(CONVERT($M$20,"kg","lbm"),3) -> 0.000 | O20: =$N$20/Area_TotalBuilding ->  | P20: =$F$7+$K$7 -> 
B21: 05 - Metals | C21: =$D21/$D$26 ->  | E21: =ROUND(CONVERT($D$21,"kg","lbm"),3) -> 0.000 | F21: =$E$21/Area_TotalBuilding ->  | H21: =I21/$I$26 ->  | J21: =ROUND(CONVERT($I$21,"kg","lbm"),3) -> 0.000 | K21: =$J$21/Area_TotalBuilding ->  | M21: =$D$21+$I$21 -> 0.000 | N21: =ROUND(CONVERT($M$21,"kg","lbm"),3) -> 0.000 | O21: =$N$21/Area_TotalBuilding ->  | P21: =$F$8+$K$8 -> 
B22: 06 - Wood/Plastics/Composites | C22: =$D22/$D$26 ->  | E22: =ROUND(CONVERT($D$22,"kg","lbm"),3) -> 0.000 | F22: =$E$22/Area_TotalBuilding ->  | H22: =I22/$I$26 ->  | J22: =ROUND(CONVERT($I$22,"kg","lbm"),3) -> 0.000 | K22: =$J$22/Area_TotalBuilding ->  | M22: =$D$22+$I$22 -> 0.000 | N22: =ROUND(CONVERT($M$22,"kg","lbm"),3) -> 0.000 | O22: =$N$22/Area_TotalBuilding ->  | P22: =$F$9+$K$9 -> 
B23: 07 - Thermal and Moisture Protection | C23: =$D23/$D$26 ->  | E23: =ROUND(CONVERT($D$23,"kg","lbm"),3) -> 0.000 | F23: =$E$23/Area_TotalBuilding ->  | H23: =I23/$I$26 ->  | J23: =ROUND(CONVERT($I$23,"kg","lbm"),3) -> 0.000 | K23: =$J$23/Area_TotalBuilding ->  | M23: =$D$23+$I$23 -> 0.000 | N23: =ROUND(CONVERT($M$23,"kg","lbm"),3) -> 0.000 | O23: =$N$23/Area_TotalBuilding ->  | P23: =$F$10+$K$10 -> 
B24: 08 - Openings and Glazing | C24: =$D24/$D$26 ->  | E24: =ROUND(CONVERT($D$24,"kg","lbm"),3) -> 0.000 | F24: =$E$24/Area_TotalBuilding ->  | H24: =I24/$I$26 ->  | J24: =ROUND(CONVERT($I$24,"kg","lbm"),3) -> 0.000 | K24: =$J$24/Area_TotalBuilding ->  | M24: =$D$24+$I$24 -> 0.000 | N24: =ROUND(CONVERT($M$24,"kg","lbm"),3) -> 0.000 | O24: =$N$24/Area_TotalBuilding ->  | P24: =$F$11+$K$11 -> 
B25: 09 - Finishes | E25: =ROUND(CONVERT($D$25,"kg","lbm"),3) -> 0.000 | F25: =$E$25/Area_TotalBuilding ->  | J25: =ROUND(CONVERT($I$25,"kg","lbm"),3) -> 0.000 | K25: =$J$25/Area_TotalBuilding ->  | M25: =$D$25+$I$25 -> 0.000 | N25: =ROUND(CONVERT($M$25,"kg","lbm"),3) -> 0.000 | O25: =$N$25/Area_TotalBuilding ->  | P25: =$F$12+$K$12 -> 
B26: Total | C26: =ROUND(SUM($C$19:$C$25),3) ->  | E26: =ROUND(CONVERT($D$26,"kg","lbm"),3) -> 0.000 | F26: =$E$26/Area_TotalBuilding ->  | H26: =ROUND(SUM($H$19:$H$25),3) ->  | J26: =ROUND(CONVERT($I$26,"kg","lbm"),3) -> 0.000 | K26: =$J$26/Area_TotalBuilding ->  | M26: =$D$26+$I$26 -> 0.000 | N26: =ROUND(CONVERT($M$26,"kg","lbm"),3) -> 0.000 | O26: =$N$26/Area_TotalBuilding ->  | P26: =$F$13+$K$13 -> 
B27: QA check | D27: =ROUND(SUM($D$19:$D$25),3) -> 0.000 | E27: =SUM($E$19:$E$25) -> 0.000 | F27: =SUM($F$19:$F$25) ->  | I27: =ROUND(SUM(I19:I25),3) -> 0.000 | J27: =SUM($J$19:$J$25) -> 0.000 | K27: =SUM($K$19:$K$25) ->  | M27: =SUM($M$19:M$25) -> 0.000 | N27: =ROUND(SUM($N$19:$N$25),3) -> 0.000 | O27: =SUM($O$19:$O$25) ->  | P27: =SUM($P$19:$P$25) -> 

Sheet GWP Calculator | Furniture
B1: updated 06/28/2023
B3: GWP Summary | Furniture
B4: GWP per square foot | T4: Total GWP with QTO, lb CO2e
B5: New furniture | C5: =X5/Area_TotalBuilding ->  | D5: lbs CO2e/sf | T5: New furniture | X5: =$X$83 -> 0.000 | Y5: lb CO2e
B6: Salvaged furniture | C6: =X6/Area_TotalBuilding ->  | D6: lbs CO2e/sf | T6: Salvaged furniture | X6: =$Y$83 -> 0.000 | Y6: lb CO2e
B7: New + Salvaged furniture | C7: =X7/Area_TotalBuilding ->  | D7: lbs CO2e/sf | T7: New + Salvaged furniture | X7: =$X$84 -> 0.000 | Y7: lb CO2e
B9: Furniture | I9: Furniture EPD Data Ranges (see notes below) | T9: GWP Calculator | Furniture
F10: Quantity of Material | I10: EPD 1 | L10: EPD 2 | O10: EPD 3 | R10: CLF baseline GWP | T10: GWP Averages | X10: GWP with QTO, lb CO2e
B11: Description | C11: Notes | F11: New | G11: Salvaged | I11: Manufacturer | J11: kg CO2e | L11: Manufacturer | M11: kg CO2e | O11: Manufacturer | P11: kg CO2e | R11: kg CO2e | T11: kg CO2e | V11: lb CO2e | X11: New | Y11: Salvaged
B12: Chair - Conference | C12: with casters | I12: Herman Miller | J12: 34.40 | L12: Herman Miller | M12: 73.00 | O12: Knoll | P12: 110.00 | T12: =AVERAGE(J12,M12,P12) -> 72.467 | V12: =ROUND(CONVERT(T12,"kg","lbm"),3) -> 159.762 | X12: =V12*F12 -> 0.000 | Y12: =V12*G12 -> 0.000
B13: Chair - Task | C13: with casters and adjustability | I13: Herman Miller | J13: 75.70 | L13: Knoll | M13: 88.30 | O13: Steelcase | P13: 106.40 | R13: 77.80 | T13: =AVERAGE(J13,M13,P13) -> 90.133 | V13: =ROUND(CONVERT(T13,"kg","lbm"),3) -> 198.710 | X13: =V13*F13 -> 0.000 | Y13: =V13*G13 -> 0.000
B14: Chair - High Density Stacker | C14: typically 40+ chairs stacking on dolly | I14: Emeco | J14: 16.30 | L14: Howe | M14: 30.60 | O14: KI | P14: 48.30 | T14: 31.733 | V14: 69.960 | X14: 0.000 | Y14: 0.000
B15: Chair - Guest/Study | C15: poly seat, wood legs | I15: Emeco | J15: 19.00 | L15: Arper | M15: 39.15 | O15: Haworth | P15: 53.00 | T15: 37.050 | V15: 81.681 | X15: 0.000 | Y15: 0.000
B16: Chair - Barstool | C16: painted metal base with poly seat | I16: Emeco | J16: 21.00 | L16: Howe | M16: 38.50 | O16: KI | P16: 57.17 | T16: 38.890 | V16: 85.738 | X16: 0.000 | Y16: 0.000
B17: Chair - Stool (18" seat height) | C17: 18"seat height | I17: Emeco | J17: 8.46 | L17: Mark Products | M17: 11.00 | T17: 9.730 | V17: 21.451 | X17: 0.000 | Y17: 0.000
B18: Table - Height Adjustable | C18: 24"x36" typ size | I18: Teknion | J18: 156.00 | L18: Steelcase | M18: 160.00 | O18: Haworth | P18: 200.00 | T18: 172.000 | V18: 379.195 | X18: 0.000 | Y18: 0.000
B19: Table - Conference/Study Table | C19: 36"x72" typ size | I19: Haworth | J19: 130.00 | L19: Steelcase | M19: 190.00 | O19: Gunlocke | P19: 310.00 | R19: 134.00 | T19: 210.000 | V19: 462.971 | X19: 0.000 | Y19: 0.000
B20: Table - Flip Top | C20: flip top with casters | I20: Howe | J20: 79.30 | L20: KI | M20: 110.00 | O20: KI | P20: 130.00 | T20: 106.433 | V20: 234.645 | X20: 0.000 | Y20: 0.000
B21: Table - Laptop | C21: wood or metal base with lam or quartz top | I21: Arper | J21: 50.00 | T21: 50.000 | V21: 110.231 | X21: 0.000 | Y21: 0.000
B22: Table - Coffee/Occasional Table | C22: wood or metal base with lam or quartz top | I22: Koleksiyon | J22: 66.00 | L22: Haworth | M22: 180.00 | O22: Haworth | P22: 270.00 | T22: 172.000 | V22: 379.195 | X22: 0.000 | Y22: 0.000
B23: Workstation - 6x6 Station | C23: 6' x 6' floor plate desk configuration (L shaped) | I23: Teknion | J23: 105.00 | L23: Haworth | M23: 300.00 | O23: Knoll | P23: 572.00 | R23: 435.00 | T23: 325.667 | V23: 717.972 | X23: 0.000 | Y23: 0.000
B24: Workstation - Private Office | C24: L shaped with wall mounted elements | I24: Knoll | J24: 208.00 | L24: Gunlocke | M24: 220.00 | O24: Haworth | P24: 570.00 | R24: 489.00 | T24: 332.667 | V24: 733.404 | X24: 0.000 | Y24: 0.000
B25: Lounge - 3-seat Sofa | C25: 3 seat upholstered sofa | I25: Haworth | J25: 89.00 | L25: Koleksiyon | M25: 309.00 | O25: ForaForm | P25: 364.00 | R25: 98.20 | T25: 254.000 | V25: 559.974 | X25: 0.000 | Y25: 0.000
B26: Lounge - Ottoman | C26: small ottoman/pouf | I26: ForaForm | J26: 24.00 | L26: Koleksiyon | M26: 40.00 | O26: Haworth | P26: 75.00 | T26: 46.333 | V26: 102.148 | X26: 0.000 | Y26: 0.000
B27: Lounge - Highback | C27: wood or metal base with upholstered seat and back | I27: Vitra | J27: 152.00 | L27: Vitra | M27: 270.00 | O27: ForaForm | P27: 262.30 | T27: 228.100 | V27: 502.874 | X27: 0.000 | Y27: 0.000
B28: Lounge - Low/Mid Back | C28: wood or metal base with upholstered seat and back | I28: Haworth | J28: 120.00 | L28: Haworth | M28: 150.00 | O28: KI | P28: 170.00 | T28: 146.667 | V28: 323.345 | X28: 0.000 | Y28: 0.000
B29: Shelving - 66"H Double Face Shelving | C29: welded frame unit | J29: 0.00 | L29: MSR Design STUDY VIA TALLY - modeled after Estey product | P29: 217.50 | T29: =P29 -> 217.500 | V29: 479.505 | X29: 0.000 | Y29: 0.000
B30: Shelving - 66"H Single Face Shelving | C30: welded frame unit | J30: 0.00 | L30: MSR Design STUDY VIA TALLY - modeled after Estey product | P30: 124.29 | T30: =P30 -> 124.290 | V30: 274.013 | X30: 0.000 | Y30: 0.000
B31: Shelving - Metal Typical End Panel | C31: 66"H End panel | J31: 0.00 | L31: MSR Design STUDY VIA TALLY - modeled after Estey product | P31: 54.22 | T31: =P31 -> 54.220 | V31: 119.535 | X31: 0.000 | Y31: 0.000
B32: Shelving - Metal Typical Canopy Top | J32: 0.00 | L32: MSR Design STUDY VIA TALLY - modeled after Estey product | P32: 26.30 | T32: 13.150 | V32: 28.991 | X32: 0.000 | Y32: 0.000
B33: add additional furniture as needed | J33: 0.00 | T33: 0.000 | V33: 0.000 | X33: 0.000 | Y33: 0.000
J34: 0.00 | T34: 0.000 | V34: 0.000 | X34: 0.000 | Y34: 0.000
J35: 0.00 | T35: 0.000 | V35: 0.000 | X35: 0.000 | Y35: 0.000
J36: 0.00 | T36: 0.000 | V36: 0.000 | X36: 0.000 | Y36: 0.000
J37: 0.00 | T37: 0.000 | V37: 0.000 | X37: 0.000 | Y37: 0.000
J38: 0.00 | T38: 0.000 | V38: 0.000 | X38: 0.000 | Y38: 0.000
J39: 0.00 | T39: 0.000 | V39: 0.000 | X39: 0.000 | Y39: 0.000
J40: 0.00 | T40: 0.000 | V40: 0.000 | X40: 0.000 | Y40: 0.000
J41: 0.00 | T41: 0.000 | V41: 0.000 | X41: 0.000 | Y41: 0.000
J42: 0.00 | T42: 0.000 | V42: 0.000 | X42: 0.000 | Y42: 0.000
J43: 0.00 | T43: 0.000 | V43: 0.000 | X43: 0.000 | Y43: 0.000
J44: 0.00 | T44: 0.000 | V44: 0.000 | X44: 0.000 | Y44: 0.000
J45: 0.00 | T45: 0.000 | V45: 0.000 | X45: 0.000 | Y45: 0.000
J46: 0.00 | T46: 0.000 | V46: 0.000 | X46: 0.000 | Y46: 0.000
J47: 0.00 | T47: 0.000 | V47: 0.000 | X47: 0.000 | Y47: 0.000
J48: 0.00 | T48: 0.000 | V48: 0.000 | X48: 0.000 | Y48: 0.000
J49: 0.00 | T49: 0.000 | V49: 0.000 | X49: 0.000 | Y49: 0.000
J50: 0.00 | T50: 0.000 | V50: 0.000 | X50: 0.000 | Y50: 0.000
J51: 0.00 | T51: 0.000 | V51: 0.000 | X51: 0.000 | Y51: 0.000
J52: 0.00 | T52: 0.000 | V52: 0.000 | X52: 0.000 | Y52: 0.000
J53: 0.00 | T53: 0.000 | V53: 0.000 | X53: 0.000 | Y53: 0.000
J54: 0.00 | T54: 0.000 | V54: 0.000 | X54: 0.000 | Y54: 0.000
J55: 0.00 | T55: 0.000 | V55: 0.000 | X55: 0.000 | Y55: 0.000
J56: 0.00 | T56: 0.000 | V56: 0.000 | X56: 0.000 | Y56: 0.000
J57: 0.00 | T57: 0.000 | V57: 0.000 | X57: 0.000 | Y57: 0.000
J58: 0.00 | T58: 0.000 | V58: 0.000 | X58: 0.000 | Y58: 0.000
J59: 0.00 | T59: 0.000 | V59: 0.000 | X59: 0.000 | Y59: 0.000
J60: 0.00 | T60: 0.000 | V60: 0.000 | X60: 0.000 | Y60: 0.000
J61: 0.00 | T61: 0.000 | V61: 0.000 | X61: 0.000 | Y61: 0.000
J62: 0.00 | T62: 0.000 | V62: 0.000 | X62: 0.000 | Y62: 0.000
J63: 0.00 | T63: 0.000 | V63: 0.000 | X63: 0.000 | Y63: 0.000
J64: 0.00 | T64: 0.000 | V64: 0.000 | X64: 0.000 | Y64: 0.000
J65: 0.00 | T65: 0.000 | V65: 0.000 | X65: 0.000 | Y65: 0.000
J66: 0.00 | T66: 0.000 | V66: 0.000 | X66: 0.000 | Y66: 0.000
J67: 0.00 | T67: 0.000 | V67: 0.000 | X67: 0.000 | Y67: 0.000
J68: 0.00 | T68: 0.000 | V68: 0.000 | X68: 0.000 | Y68: 0.000
J69: 0.00 | T69: 0.000 | V69: 0.000 | X69: 0.000 | Y69: 0.000
J70: 0.00 | T70: 0.000 | V70: 0.000 | X70: 0.000 | Y70: 0.000
J71: 0.00 | T71: 0.000 | V71: 0.000 | X71: 0.000 | Y71: 0.000
J72: 0.00 | T72: 0.000 | V72: 0.000 | X72: 0.000 | Y72: 0.000
J73: 0.00 | T73: 0.000 | V73: 0.000 | X73: 0.000 | Y73: 0.000
J74: 0.00 | T74: 0.000 | V74: 0.000 | X74: 0.000 | Y74: 0.000
J75: 0.00 | T75: 0.000 | V75: 0.000 | X75: 0.000 | Y75: 0.000
J76: 0.00 | T76: 0.000 | V76: 0.000 | X76: 0.000 | Y76: 0.000
J77: 0.00 | T77: =AVERAGE(J77,M77,P77) -> 0.000 | V77: =ROUND(CONVERT(T77,"kg","lbm"),3) -> 0.000 | X77: =V77*F77 -> 0.000 | Y77: =V77*G77 -> 0.000
J78: 0.00 | T78: 0.000 | V78: 0.000 | X78: 0.000 | Y78: 0.000
J79: 0.00 | T79: 0.000 | V79: 0.000 | X79: 0.000 | Y79: 0.000
J80: 0.00 | T80: 0.000 | V80: 0.000 | X80: 0.000 | Y80: 0.000
J81: 0.00 | T81: 0.000 | V81: 0.000 | X81: 0.000 | Y81: 0.000
V83: GWP total | X83: =SUM($X$12:X82) -> 0.000 | Y83: =SUM($Y$12:Y82) -> 0.000
V84: Total GWP (New + Salvaged) | X84: =X83+Y83 -> 0.000
B86: Furniture not accounted for | I86: Furniture EPD Data Ranges Notes
B87: Description | F87: Quantity of Material | I87: if only one EPD is listed for an item DO NOT PLACE "0" in columns for EPD 2 and 3
F88: New | G88: Salvaged | I88: Documents with this color have a different naming system than EPD | R88: (to change the color above use Format Painter) | Z88: `
B89: Layout Carts | I89: Documents with this color comes from outside of North America | R89: (to change the color above use Format Painter)
B90: Book Carts | I90: Documents with this color are being recertified | R90: (to change the color above use Format Painter)
B91: Millwork Islands | I91: Environmental impact uses Green House Gas Equivalency Calculator
B92: Reception Desk
B93: planter
B94: Plant Pots
B95: Modular Shelving Units

Sheet GWP Calculator | Casework
B1: updated 10/07/2024
B2: Enter building area
B4: Total GWP Summary | Casework
D5: kg CO2e | E5: kg CO2e per SF
B6: New casework | D6: =SUMIF(O:O,"ngwp",L:L) -> 0.00 | E6: =D6/$D$2 -> 
B7: Salvaged casework | D7: =SUMIF(P:P,"sgwp",M:M) -> 0.00 | E7: =D7/$D$2 -> 
B8: New + Salvaged casework | D8: =D6+D7 -> 0.00 | E8: =D8/$D$2 -> 
B10: GWP Calculator | Casework Group Breakout | O10: used for formula do not delete
D11: Casework and Countertop Materials | I11: GWP per LF, kg CO2e | L11: Subtotal GWP with QTO, kg CO2e
D12: New | E12: Salvaged | G12: enter QTO in LF | I12: New | J12: Salvaged | L12: New | M12: Salvaged
B14: Casework Group 1 | C14: input group description here | L14: =SUM(L15:L18) -> 0.000 | M14: =SUM(M15:M18) -> 0.000 | O14: ngwp | P14: sgwp
B15: base cabinets | D15: N/A | E15: N/A | I15: =VLOOKUP(D15,'Tally Casework Outputs'!$P$3:$Q$17,2,0) -> 0.000 | J15: =VLOOKUP(E15,'Tally Casework Outputs'!$P$3:$Q$17,2,0) -> 0.000 | L15: =G15*I15 -> 0.000 | M15: =J15*G15 -> 0.000
B16: upper cabinets | D16: N/A | E16: N/A | I16: =VLOOKUP(D16,'Tally Casework Outputs'!$S$3:$T$17,2,0) -> 0.000 | J16: =VLOOKUP(E16,'Tally Casework Outputs'!$S$3:$T$17,2,0) -> 0.000 | L16: =G16*I16 -> 0.000 | M16: =J16*G16 -> 0.000
B17: tall cabinets | D17: N/A | E17: N/A | I17: =VLOOKUP(D17,'Tally Casework Outputs'!$V$3:$W$17,2,0) -> 0.000 | J17: =VLOOKUP(E17,'Tally Casework Outputs'!$V$3:$W$17,2,0) -> 0.000 | L17: 0.000 | M17: =J17*G17 -> 0.000
B18: countertop | D18: N/A | E18: N/A | I18: =VLOOKUP(D18,'Tally Casework Outputs'!$Y$3:$Z$17,2,0) -> 0.000 | J18: =VLOOKUP(E18,'Tally Casework Outputs'!$Y$3:$Z$17,2,0) -> 0.000 | L18: 0.000 | M18: 0.000
B20: Casework Group 2 | C20: input group description here | L20: =SUM(L21:L24) -> 0.00 | M20: =SUM(M21:M24) -> 0.00 | O20: ngwp | P20: sgwp
B21: base cabinets | D21: N/A | E21: N/A | I21: =VLOOKUP(D21,'Tally Casework Outputs'!$P$3:$Q$17,2,0) -> 0.000 | J21: =VLOOKUP(E21,'Tally Casework Outputs'!$P$3:$Q$17,2,0) -> 0.000 | L21: =G21*I21 -> 0.000 | M21: =J21*G21 -> 0.000
B22: upper cabinets | D22: N/A | E22: N/A | I22: =VLOOKUP(D22,'Tally Casework Outputs'!$S$3:$T$17,2,0) -> 0.000 | J22: =VLOOKUP(E22,'Tally Casework Outputs'!$S$3:$T$17,2,0) -> 0.000 | L22: =G22*I22 -> 0.000 | M22: =J22*G22 -> 0.000
B23: tall cabinets | D23: N/A | E23: N/A | I23: =VLOOKUP(D23,'Tally Casework Outputs'!$V$3:$W$17,2,0) -> 0.000 | J23: =VLOOKUP(E23,'Tally Casework Outputs'!$V$3:$W$17,2,0) -> 0.000 | L23: 0.000 | M23: 0.000
B24: countertop | D24: N/A | E24: N/A | I24: =VLOOKUP(D24,'Tally Casework Outputs'!$Y$3:$Z$17,2,0) -> 0.000 | J24: =VLOOKUP(E24,'Tally Casework Outputs'!$Y$3:$Z$17,2,0) -> 0.000 | L24: 0.000 | M24: 0.000
B26: Casework Group 3 | C26: input group description here | L26: =SUM(L27:L30) -> 0.00 | M26: =SUM(M27:M30) -> 0.00 | O26: ngwp | P26: sgwp
B27: base cabinets | D27: N/A | E27: N/A | I27: =VLOOKUP(D27,'Tally Casework Outputs'!$P$3:$Q$17,2,0) -> 0.000 | J27: =VLOOKUP(E27,'Tally Casework Outputs'!$P$3:$Q$17,2,0) -> 0.000 | L27: =G27*I27 -> 0.000 | M27: =J27*G27 -> 0.000
B28: upper cabinets | D28: N/A | E28: N/A | I28: =VLOOKUP(D28,'Tally Casework Outputs'!$S$3:$T$17,2,0) -> 0.000 | J28: =VLOOKUP(E28,'Tally Casework Outputs'!$S$3:$T$17,2,0) -> 0.000 | L28: =G28*I28 -> 0.000 | M28: =J28*G28 -> 0.000
B29: tall cabinets | D29: N/A | E29: N/A | I29: =VLOOKUP(D29,'Tally Casework Outputs'!$V$3:$W$17,2,0) -> 0.000 | J29: =VLOOKUP(E29,'Tally Casework Outputs'!$V$3:$W$17,2,0) -> 0.000 | L29: 0.000 | M29: 0.000
B30: countertop | D30: N/A | E30: N/A | I30: =VLOOKUP(D30,'Tally Casework Outputs'!$Y$3:$Z$17,2,0) -> 0.000 | J30: =VLOOKUP(E30,'Tally Casework Outputs'!$Y$3:$Z$17,2,0) -> 0.000 | L30: 0.000 | M30: 0.000
B32: Casework Group 4 | C32: input group description here | L32: =SUM(L33:L36) -> 0.000 | M32: =SUM(M33:M36) -> 0.000 | O32: ngwp | P32: sgwp
B33: base cabinets | D33: N/A | E33: N/A | I33: =VLOOKUP(D33,'Tally Casework Outputs'!$P$3:$Q$17,2,0) -> 0.000 | J33: =VLOOKUP(E33,'Tally Casework Outputs'!$P$3:$Q$17,2,0) -> 0.000 | L33: =G33*I33 -> 0.000 | M33: =J33*G33 -> 0.000
B34: upper cabinets | D34: N/A | E34: N/A | I34: =VLOOKUP(D34,'Tally Casework Outputs'!$S$3:$T$17,2,0) -> 0.000 | J34: =VLOOKUP(E34,'Tally Casework Outputs'!$S$3:$T$17,2,0) -> 0.000 | L34: =G34*I34 -> 0.000 | M34: =J34*G34 -> 0.000
B35: tall cabinets | D35: N/A | E35: N/A | I35: =VLOOKUP(D35,'Tally Casework Outputs'!$V$3:$W$17,2,0) -> 0.000 | J35: =VLOOKUP(E35,'Tally Casework Outputs'!$V$3:$W$17,2,0) -> 0.000 | L35: 0.000 | M35: =J35*G35 -> 0.000
B36: countertop | D36: N/A | E36: N/A | I36: =VLOOKUP(D36,'Tally Casework Outputs'!$Y$3:$Z$17,2,0) -> 0.000 | J36: =VLOOKUP(E36,'Tally Casework Outputs'!$Y$3:$Z$17,2,0) -> 0.000 | L36: 0.000 | M36: 0.000
B38: Casework Group 5 | C38: input group description here | L38: =SUM(L39:L42) -> 0.00 | M38: =SUM(M39:M42) -> 0.00 | O38: ngwp | P38: sgwp
B39: base cabinets | D39: N/A | E39: N/A | I39: =VLOOKUP(D39,'Tally Casework Outputs'!$P$3:$Q$17,2,0) -> 0.000 | J39: =VLOOKUP(E39,'Tally Casework Outputs'!$P$3:$Q$17,2,0) -> 0.000 | L39: =G39*I39 -> 0.000 | M39: =J39*G39 -> 0.000
B40: upper cabinets | D40: N/A | E40: N/A | I40: =VLOOKUP(D40,'Tally Casework Outputs'!$S$3:$T$17,2,0) -> 0.000 | J40: =VLOOKUP(E40,'Tally Casework Outputs'!$S$3:$T$17,2,0) -> 0.000 | L40: =G40*I40 -> 0.000 | M40: =J40*G40 -> 0.000
B41: tall cabinets | D41: N/A | E41: N/A | I41: =VLOOKUP(D41,'Tally Casework Outputs'!$V$3:$W$17,2,0) -> 0.000 | J41: =VLOOKUP(E41,'Tally Casework Outputs'!$V$3:$W$17,2,0) -> 0.000 | L41: 0.000 | M41: 0.000
B42: countertop | D42: N/A | E42: N/A | I42: =VLOOKUP(D42,'Tally Casework Outputs'!$Y$3:$Z$17,2,0) -> 0.000 | J42: =VLOOKUP(E42,'Tally Casework Outputs'!$Y$3:$Z$17,2,0) -> 0.000 | L42: 0.000 | M42: 0.000
B44: Casework Group 6 | C44: input group description here | L44: =SUM(L45:L48) -> 0.000 | M44: =SUM(M45:M48) -> 0.000 | O44: ngwp | P44: sgwp
B45: base cabinets | D45: N/A | E45: N/A | I45: =VLOOKUP(D45,'Tally Casework Outputs'!$P$3:$Q$17,2,0) -> 0.000 | J45: =VLOOKUP(E45,'Tally Casework Outputs'!$P$3:$Q$17,2,0) -> 0.000 | L45: =G45*I45 -> 0.000 | M45: =J45*G45 -> 0.000
B46: upper cabinets | D46: N/A | E46: N/A | I46: =VLOOKUP(D46,'Tally Casework Outputs'!$S$3:$T$17,2,0) -> 0.000 | J46: =VLOOKUP(E46,'Tally Casework Outputs'!$S$3:$T$17,2,0) -> 0.000 | L46: =G46*I46 -> 0.000 | M46: =J46*G46 -> 0.000
B47: tall cabinets | D47: N/A | E47: N/A | I47: =VLOOKUP(D47,'Tally Casework Outputs'!$V$3:$W$17,2,0) -> 0.000 | J47: =VLOOKUP(E47,'Tally Casework Outputs'!$V$3:$W$17,2,0) -> 0.000 | L47: 0.000 | M47: =J47*G47 -> 0.000
B48: countertop | D48: N/A | E48: N/A | I48: =VLOOKUP(D48,'Tally Casework Outputs'!$Y$3:$Z$17,2,0) -> 0.000 | J48: =VLOOKUP(E48,'Tally Casework Outputs'!$Y$3:$Z$17,2,0) -> 0.000 | L48: 0.000 | M48: 0.000
B50: Casework Group 7 | C50: input group description here | L50: =SUM(L51:L54) -> 0.00 | M50: =SUM(M51:M54) -> 0.00 | O50: ngwp | P50: sgwp
B51: base cabinets | D51: N/A | E51: N/A | I51: =VLOOKUP(D51,'Tally Casework Outputs'!$P$3:$Q$17,2,0) -> 0.000 | J51: =VLOOKUP(E51,'Tally Casework Outputs'!$P$3:$Q$17,2,0) -> 0.000 | L51: =G51*I51 -> 0.000 | M51: =J51*G51 -> 0.000
B52: upper cabinets | D52: N/A | E52: N/A | I52: =VLOOKUP(D52,'Tally Casework Outputs'!$S$3:$T$17,2,0) -> 0.000 | J52: =VLOOKUP(E52,'Tally Casework Outputs'!$S$3:$T$17,2,0) -> 0.000 | L52: =G52*I52 -> 0.000 | M52: =J52*G52 -> 0.000
B53: tall cabinets | D53: N/A | E53: N/A | I53: =VLOOKUP(D53,'Tally Casework Outputs'!$V$3:$W$17,2,0) -> 0.000 | J53: =VLOOKUP(E53,'Tally Casework Outputs'!$V$3:$W$17,2,0) -> 0.000 | L53: 0.000 | M53: 0.000
B54: countertop | D54: N/A | E54: N/A | I54: =VLOOKUP(D54,'Tally Casework Outputs'!$Y$3:$Z$17,2,0) -> 0.000 | J54: =VLOOKUP(E54,'Tally Casework Outputs'!$Y$3:$Z$17,2,0) -> 0.000 | L54: 0.000 | M54: 0.000
B56: Casework Group 8 | C56: input group description here | L56: =SUM(L57:L60) -> 0.00 | M56: =SUM(M57:M60) -> 0.00 | O56: ngwp | P56: sgwp
B57: base cabinets | D57: N/A | E57: N/A | I57: =VLOOKUP(D57,'Tally Casework Outputs'!$P$3:$Q$17,2,0) -> 0.000 | J57: =VLOOKUP(E57,'Tally Casework Outputs'!$P$3:$Q$17,2,0) -> 0.000 | L57: =G57*I57 -> 0.000 | M57: =J57*G57 -> 0.000
B58: upper cabinets | D58: N/A | E58: N/A | I58: =VLOOKUP(D58,'Tally Casework Outputs'!$S$3:$T$17,2,0) -> 0.000 | J58: =VLOOKUP(E58,'Tally Casework Outputs'!$S$3:$T$17,2,0) -> 0.000 | L58: =G58*I58 -> 0.000 | M58: =J58*G58 -> 0.000
B59: tall cabinets | D59: N/A | E59: N/A | I59: =VLOOKUP(D59,'Tally Casework Outputs'!$V$3:$W$17,2,0) -> 0.000 | J59: =VLOOKUP(E59,'Tally Casework Outputs'!$V$3:$W$17,2,0) -> 0.000 | L59: 0.000 | M59: 0.000
B60: countertop | D60: N/A | E60: N/A | I60: =VLOOKUP(D60,'Tally Casework Outputs'!$Y$3:$Z$17,2,0) -> 0.000 | J60: =VLOOKUP(E60,'Tally Casework Outputs'!$Y$3:$Z$17,2,0) -> 0.000 | L60: 0.000 | M60: 0.000
B62: Casework Group 9 | C62: input group description here | L62: =SUM(L63:L66) -> 0.000 | M62: =SUM(M63:M66) -> 0.000 | O62: ngwp | P62: sgwp
B63: base cabinets | D63: N/A | E63: N/A | I63: =VLOOKUP(D63,'Tally Casework Outputs'!$P$3:$Q$17,2,0) -> 0.000 | J63: =VLOOKUP(E63,'Tally Casework Outputs'!$P$3:$Q$17,2,0) -> 0.000 | L63: =G63*I63 -> 0.000 | M63: =J63*G63 -> 0.000
B64: upper cabinets | D64: N/A | E64: N/A | I64: =VLOOKUP(D64,'Tally Casework Outputs'!$S$3:$T$17,2,0) -> 0.000 | J64: =VLOOKUP(E64,'Tally Casework Outputs'!$S$3:$T$17,2,0) -> 0.000 | L64: =G64*I64 -> 0.000 | M64: =J64*G64 -> 0.000
B65: tall cabinets | D65: N/A | E65: N/A | I65: =VLOOKUP(D65,'Tally Casework Outputs'!$V$3:$W$17,2,0) -> 0.000 | J65: =VLOOKUP(E65,'Tally Casework Outputs'!$V$3:$W$17,2,0) -> 0.000 | L65: 0.000 | M65: =J65*G65 -> 0.000
B66: countertop | D66: N/A | E66: N/A | I66: =VLOOKUP(D66,'Tally Casework Outputs'!$Y$3:$Z$17,2,0) -> 0.000 | J66: =VLOOKUP(E66,'Tally Casework Outputs'!$Y$3:$Z$17,2,0) -> 0.000 | L66: 0.000 | M66: 0.000
B68: Casework Group 10 | C68: input group description here | L68: =SUM(L69:L72) -> 0.00 | M68: =SUM(M69:M72) -> 0.00 | O68: ngwp | P68: sgwp
B69: base cabinets | D69: N/A | E69: N/A | I69: =VLOOKUP(D69,'Tally Casework Outputs'!$P$3:$Q$17,2,0) -> 0.000 | J69: =VLOOKUP(E69,'Tally Casework Outputs'!$P$3:$Q$17,2,0) -> 0.000 | L69: =G69*I69 -> 0.000 | M69: =J69*G69 -> 0.000
B70: upper cabinets | D70: N/A | E70: N/A | I70: =VLOOKUP(D70,'Tally Casework Outputs'!$S$3:$T$17,2,0) -> 0.000 | J70: =VLOOKUP(E70,'Tally Casework Outputs'!$S$3:$T$17,2,0) -> 0.000 | L70: =G70*I70 -> 0.000 | M70: =J70*G70 -> 0.000
B71: tall cabinets | D71: N/A | E71: N/A | I71: =VLOOKUP(D71,'Tally Casework Outputs'!$V$3:$W$17,2,0) -> 0.000 | J71: =VLOOKUP(E71,'Tally Casework Outputs'!$V$3:$W$17,2,0) -> 0.000 | L71: 0.000 | M71: 0.000
B72: countertop | D72: N/A | E72: N/A | I72: =VLOOKUP(D72,'Tally Casework Outputs'!$Y$3:$Z$17,2,0) -> 0.000 | J72: =VLOOKUP(E72,'Tally Casework Outputs'!$Y$3:$Z$17,2,0) -> 0.000 | L72: 0.000 | M72: 0.000
B74: Casework Group 11 | C74: input group description here | L74: =SUM(L75:L78) -> 0.000 | M74: =SUM(M75:M78) -> 0.000 | O74: ngwp | P74: sgwp
B75: base cabinets | D75: N/A | E75: N/A | I75: =VLOOKUP(D75,'Tally Casework Outputs'!$P$3:$Q$17,2,0) -> 0.000 | J75: =VLOOKUP(E75,'Tally Casework Outputs'!$P$3:$Q$17,2,0) -> 0.000 | L75: =G75*I75 -> 0.000 | M75: =J75*G75 -> 0.000
B76: upper cabinets | D76: N/A | E76: N/A | I76: =VLOOKUP(D76,'Tally Casework Outputs'!$S$3:$T$17,2,0) -> 0.000 | J76: =VLOOKUP(E76,'Tally Casework Outputs'!$S$3:$T$17,2,0) -> 0.000 | L76: =G76*I76 -> 0.000 | M76: =J76*G76 -> 0.000
B77: tall cabinets | D77: N/A | E77: N/A | I77: =VLOOKUP(D77,'Tally Casework Outputs'!$V$3:$W$17,2,0) -> 0.000 | J77: =VLOOKUP(E77,'Tally Casework Outputs'!$V$3:$W$17,2,0) -> 0.000 | L77: 0.000 | M77: =J77*G77 -> 0.000
B78: countertop | D78: N/A | E78: N/A | I78: =VLOOKUP(D78,'Tally Casework Outputs'!$Y$3:$Z$17,2,0) -> 0.000 | J78: =VLOOKUP(E78,'Tally Casework Outputs'!$Y$3:$Z$17,2,0) -> 0.000 | L78: 0.000 | M78: 0.000
B80: Casework Group 12 | C80: input group description here | L80: =SUM(L81:L84) -> 0.00 | M80: =SUM(M81:M84) -> 0.00 | O80: ngwp | P80: sgwp
B81: base cabinets | D81: N/A | E81: N/A | I81: =VLOOKUP(D81,'Tally Casework Outputs'!$P$3:$Q$17,2,0) -> 0.000 | J81: =VLOOKUP(E81,'Tally Casework Outputs'!$P$3:$Q$17,2,0) -> 0.000 | L81: =G81*I81 -> 0.000 | M81: =J81*G81 -> 0.000
B82: upper cabinets | D82: N/A | E82: N/A | I82: =VLOOKUP(D82,'Tally Casework Outputs'!$S$3:$T$17,2,0) -> 0.000 | J82: =VLOOKUP(E82,'Tally Casework Outputs'!$S$3:$T$17,2,0) -> 0.000 | L82: =G82*I82 -> 0.000 | M82: =J82*G82 -> 0.000
B83: tall cabinets | D83: N/A | E83: N/A | I83: =VLOOKUP(D83,'Tally Casework Outputs'!$V$3:$W$17,2,0) -> 0.000 | J83: =VLOOKUP(E83,'Tally Casework Outputs'!$V$3:$W$17,2,0) -> 0.000 | L83: 0.000 | M83: 0.000
B84: countertop | D84: N/A | E84: N/A | I84: =VLOOKUP(D84,'Tally Casework Outputs'!$Y$3:$Z$17,2,0) -> 0.000 | J84: =VLOOKUP(E84,'Tally Casework Outputs'!$Y$3:$Z$17,2,0) -> 0.000 | L84: 0.000 | M84: 0.000
B86: Casework Group 13 | C86: input group description here | L86: =SUM(L87:L90) -> 0.00 | M86: =SUM(M87:M90) -> 0.00 | O86: ngwp | P86: sgwp
B87: base cabinets | D87: N/A | E87: N/A | I87: =VLOOKUP(D87,'Tally Casework Outputs'!$P$3:$Q$17,2,0) -> 0.000 | J87: =VLOOKUP(E87,'Tally Casework Outputs'!$P$3:$Q$17,2,0) -> 0.000 | L87: =G87*I87 -> 0.000 | M87: =J87*G87 -> 0.000
B88: upper cabinets | D88: N/A | E88: N/A | I88: =VLOOKUP(D88,'Tally Casework Outputs'!$S$3:$T$17,2,0) -> 0.000 | J88: =VLOOKUP(E88,'Tally Casework Outputs'!$S$3:$T$17,2,0) -> 0.000 | L88: =G88*I88 -> 0.000 | M88: =J88*G88 -> 0.000
B89: tall cabinets | D89: N/A | E89: N/A | I89: =VLOOKUP(D89,'Tally Casework Outputs'!$V$3:$W$17,2,0) -> 0.000 | J89: =VLOOKUP(E89,'Tally Casework Outputs'!$V$3:$W$17,2,0) -> 0.000 | L89: 0.000 | M89: 0.000
B90: countertop | D90: N/A | E90: N/A | I90: =VLOOKUP(D90,'Tally Casework Outputs'!$Y$3:$Z$17,2,0) -> 0.000 | J90: =VLOOKUP(E90,'Tally Casework Outputs'!$Y$3:$Z$17,2,0) -> 0.000 | L90: 0.000 | M90: 0.000
B92: Casework Group 14 | C92: input group description here | L92: =SUM(L93:L96) -> 0.000 | M92: =SUM(M93:M96) -> 0.000 | O92: ngwp | P92: sgwp
B93: base cabinets | D93: N/A | E93: N/A | I93: =VLOOKUP(D93,'Tally Casework Outputs'!$P$3:$Q$17,2,0) -> 0.000 | J93: =VLOOKUP(E93,'Tally Casework Outputs'!$P$3:$Q$17,2,0) -> 0.000 | L93: =G93*I93 -> 0.000 | M93: =J93*G93 -> 0.000
B94: upper cabinets | D94: N/A | E94: N/A | I94: =VLOOKUP(D94,'Tally Casework Outputs'!$S$3:$T$17,2,0) -> 0.000 | J94: =VLOOKUP(E94,'Tally Casework Outputs'!$S$3:$T$17,2,0) -> 0.000 | L94: =G94*I94 -> 0.000 | M94: =J94*G94 -> 0.000
B95: tall cabinets | D95: N/A | E95: N/A | I95: =VLOOKUP(D95,'Tally Casework Outputs'!$V$3:$W$17,2,0) -> 0.000 | J95: =VLOOKUP(E95,'Tally Casework Outputs'!$V$3:$W$17,2,0) -> 0.000 | L95: 0.000 | M95: =J95*G95 -> 0.000
B96: countertop | D96: N/A | E96: N/A | I96: =VLOOKUP(D96,'Tally Casework Outputs'!$Y$3:$Z$17,2,0) -> 0.000 | J96: =VLOOKUP(E96,'Tally Casework Outputs'!$Y$3:$Z$17,2,0) -> 0.000 | L96: 0.000 | M96: 0.000
B98: Casework Group 15 | C98: input group description here | L98: =SUM(L99:L102) -> 0.00 | M98: =SUM(M99:M102) -> 0.00 | O98: ngwp | P98: sgwp
B99: base cabinets | D99: N/A | E99: N/A | I99: =VLOOKUP(D99,'Tally Casework Outputs'!$P$3:$Q$17,2,0) -> 0.000 | J99: =VLOOKUP(E99,'Tally Casework Outputs'!$P$3:$Q$17,2,0) -> 0.000 | L99: =G99*I99 -> 0.000 | M99: =J99*G99 -> 0.000
B100: upper cabinets | D100: N/A | E100: N/A | I100: =VLOOKUP(D100,'Tally Casework Outputs'!$S$3:$T$17,2,0) -> 0.000 | J100: =VLOOKUP(E100,'Tally Casework Outputs'!$S$3:$T$17,2,0) -> 0.000 | L100: =G100*I100 -> 0.000 | M100: =J100*G100 -> 0.000
B101: tall cabinets | D101: N/A | E101: N/A | I101: =VLOOKUP(D101,'Tally Casework Outputs'!$V$3:$W$17,2,0) -> 0.000 | J101: =VLOOKUP(E101,'Tally Casework Outputs'!$V$3:$W$17,2,0) -> 0.000 | L101: 0.000 | M101: 0.000
B102: countertop | D102: N/A | E102: N/A | I102: =VLOOKUP(D102,'Tally Casework Outputs'!$Y$3:$Z$17,2,0) -> 0.000 | J102: =VLOOKUP(E102,'Tally Casework Outputs'!$Y$3:$Z$17,2,0) -> 0.000 | L102: 0.000 | M102: 0.000
B104: Casework Group 16 | C104: input group description here | L104: =SUM(L105:L108) -> 0.000 | M104: =SUM(M105:M108) -> 0.000 | O104: ngwp | P104: sgwp
B105: base cabinets | D105: N/A | E105: N/A | I105: =VLOOKUP(D105,'Tally Casework Outputs'!$P$3:$Q$17,2,0) -> 0.000 | J105: =VLOOKUP(E105,'Tally Casework Outputs'!$P$3:$Q$17,2,0) -> 0.000 | L105: =G105*I105 -> 0.000 | M105: =J105*G105 -> 0.000
B106: upper cabinets | D106: N/A | E106: N/A | I106: =VLOOKUP(D106,'Tally Casework Outputs'!$S$3:$T$17,2,0) -> 0.000 | J106: =VLOOKUP(E106,'Tally Casework Outputs'!$S$3:$T$17,2,0) -> 0.000 | L106: =G106*I106 -> 0.000 | M106: =J106*G106 -> 0.000
B107: tall cabinets | D107: N/A | E107: N/A | I107: =VLOOKUP(D107,'Tally Casework Outputs'!$V$3:$W$17,2,0) -> 0.000 | J107: =VLOOKUP(E107,'Tally Casework Outputs'!$V$3:$W$17,2,0) -> 0.000 | L107: 0.000 | M107: =J107*G107 -> 0.000
B108: countertop | D108: N/A | E108: N/A | I108: =VLOOKUP(D108,'Tally Casework Outputs'!$Y$3:$Z$17,2,0) -> 0.000 | J108: =VLOOKUP(E108,'Tally Casework Outputs'!$Y$3:$Z$17,2,0) -> 0.000 | L108: 0.000 | M108: 0.000
B110: Casework Group 17 | C110: input group description here | L110: =SUM(L111:L114) -> 0.00 | M110: =SUM(M111:M114) -> 0.00 | O110: ngwp | P110: sgwp
B111: base cabinets | D111: N/A | E111: N/A | I111: =VLOOKUP(D111,'Tally Casework Outputs'!$P$3:$Q$17,2,0) -> 0.000 | J111: =VLOOKUP(E111,'Tally Casework Outputs'!$P$3:$Q$17,2,0) -> 0.000 | L111: =G111*I111 -> 0.000 | M111: =J111*G111 -> 0.000
B112: upper cabinets | D112: N/A | E112: N/A | I112: =VLOOKUP(D112,'Tally Casework Outputs'!$S$3:$T$17,2,0) -> 0.000 | J112: =VLOOKUP(E112,'Tally Casework Outputs'!$S$3:$T$17,2,0) -> 0.000 | L112: =G112*I112 -> 0.000 | M112: =J112*G112 -> 0.000
B113: tall cabinets | D113: N/A | E113: N/A | I113: =VLOOKUP(D113,'Tally Casework Outputs'!$V$3:$W$17,2,0) -> 0.000 | J113: =VLOOKUP(E113,'Tally Casework Outputs'!$V$3:$W$17,2,0) -> 0.000 | L113: 0.000 | M113: 0.000
B114: countertop | D114: N/A | E114: N/A | I114: =VLOOKUP(D114,'Tally Casework Outputs'!$Y$3:$Z$17,2,0) -> 0.000 | J114: =VLOOKUP(E114,'Tally Casework Outputs'!$Y$3:$Z$17,2,0) -> 0.000 | L114: 0.000 | M114: 0.000
B116: Casework Group 18 | C116: input group description here | L116: =SUM(L117:L120) -> 0.00 | M116: =SUM(M117:M120) -> 0.00 | O116: ngwp | P116: sgwp
B117: base cabinets | D117: N/A | E117: N/A | I117: =VLOOKUP(D117,'Tally Casework Outputs'!$P$3:$Q$17,2,0) -> 0.000 | J117: =VLOOKUP(E117,'Tally Casework Outputs'!$P$3:$Q$17,2,0) -> 0.000 | L117: =G117*I117 -> 0.000 | M117: =J117*G117 -> 0.000
B118: upper cabinets | D118: N/A | E118: N/A | I118: =VLOOKUP(D118,'Tally Casework Outputs'!$S$3:$T$17,2,0) -> 0.000 | J118: =VLOOKUP(E118,'Tally Casework Outputs'!$S$3:$T$17,2,0) -> 0.000 | L118: =G118*I118 -> 0.000 | M118: =J118*G118 -> 0.000
B119: tall cabinets | D119: N/A | E119: N/A | I119: =VLOOKUP(D119,'Tally Casework Outputs'!$V$3:$W$17,2,0) -> 0.000 | J119: =VLOOKUP(E119,'Tally Casework Outputs'!$V$3:$W$17,2,0) -> 0.000 | L119: 0.000 | M119: 0.000
B120: countertop | D120: N/A | E120: N/A | I120: =VLOOKUP(D120,'Tally Casework Outputs'!$Y$3:$Z$17,2,0) -> 0.000 | J120: =VLOOKUP(E120,'Tally Casework Outputs'!$Y$3:$Z$17,2,0) -> 0.000 | L120: 0.000 | M120: 0.000
B122: Casework Group 19 | C122: input group description here | L122: =SUM(L123:L126) -> 0.000 | M122: =SUM(M123:M126) -> 0.000 | O122: ngwp | P122: sgwp
B123: base cabinets | D123: N/A | E123: N/A | I123: =VLOOKUP(D123,'Tally Casework Outputs'!$P$3:$Q$17,2,0) -> 0.000 | J123: =VLOOKUP(E123,'Tally Casework Outputs'!$P$3:$Q$17,2,0) -> 0.000 | L123: =G123*I123 -> 0.000 | M123: =J123*G123 -> 0.000
B124: upper cabinets | D124: N/A | E124: N/A | I124: =VLOOKUP(D124,'Tally Casework Outputs'!$S$3:$T$17,2,0) -> 0.000 | J124: =VLOOKUP(E124,'Tally Casework Outputs'!$S$3:$T$17,2,0) -> 0.000 | L124: =G124*I124 -> 0.000 | M124: =J124*G124 -> 0.000
B125: tall cabinets | D125: N/A | E125: N/A | I125: =VLOOKUP(D125,'Tally Casework Outputs'!$V$3:$W$17,2,0) -> 0.000 | J125: =VLOOKUP(E125,'Tally Casework Outputs'!$V$3:$W$17,2,0) -> 0.000 | L125: 0.000 | M125: =J125*G125 -> 0.000
B126: countertop | D126: N/A | E126: N/A | I126: =VLOOKUP(D126,'Tally Casework Outputs'!$Y$3:$Z$17,2,0) -> 0.000 | J126: =VLOOKUP(E126,'Tally Casework Outputs'!$Y$3:$Z$17,2,0) -> 0.000 | L126: 0.000 | M126: 0.000
B128: Casework Group 20 | C128: input group description here | L128: =SUM(L129:L132) -> 0.00 | M128: =SUM(M129:M132) -> 0.00 | O128: ngwp | P128: sgwp
B129: base cabinets | D129: N/A | E129: N/A | I129: =VLOOKUP(D129,'Tally Casework Outputs'!$P$3:$Q$17,2,0) -> 0.000 | J129: =VLOOKUP(E129,'Tally Casework Outputs'!$P$3:$Q$17,2,0) -> 0.000 | L129: =G129*I129 -> 0.000 | M129: =J129*G129 -> 0.000
B130: upper cabinets | D130: N/A | E130: N/A | I130: =VLOOKUP(D130,'Tally Casework Outputs'!$S$3:$T$17,2,0) -> 0.000 | J130: =VLOOKUP(E130,'Tally Casework Outputs'!$S$3:$T$17,2,0) -> 0.000 | L130: =G130*I130 -> 0.000 | M130: =J130*G130 -> 0.000
B131: tall cabinets | D131: N/A | E131: N/A | I131: =VLOOKUP(D131,'Tally Casework Outputs'!$V$3:$W$17,2,0) -> 0.000 | J131: =VLOOKUP(E131,'Tally Casework Outputs'!$V$3:$W$17,2,0) -> 0.000 | L131: 0.000 | M131: 0.000
B132: countertop | D132: N/A | E132: N/A | I132: =VLOOKUP(D132,'Tally Casework Outputs'!$Y$3:$Z$17,2,0) -> 0.000 | J132: =VLOOKUP(E132,'Tally Casework Outputs'!$Y$3:$Z$17,2,0) -> 0.000 | L132: 0.000 | M132: 0.000
J134: GWP total | L134: =SUMIF(O:O,"ngwp",L:L) -> 0.000 | M134: =SUMIF(P:P,"sgwp",M:M) -> 0.000
J135: New + Salvaged | L135: =L134+M134 -> 0.000

Sheet Sustainability Metrics Sheet
B1: updated 06/28/2023
B2: Project Embodied Carbon Graphs (New & Reno)
B3: GWP Summary tab
B4: Project Embodied Carbon (New & Reno) | E4: QA
B5: this is reading from "Impact compared to total project" column in GWP Summary tab
B6: black dash | C6: Salvaged | D6: ='GWP Project Summary'!$H$45 -> 
B7: blue-lightest (231-249-250) | C7: 09 - Finishes | D7: ='GWP Project Summary'!$H$39 -> 
B8: blue-lighter (170-237-240) | C8: 08 - Openings and Glazing | D8: ='GWP Project Summary'!$H$34 -> 
B9: blue (80-210-220) | C9: 07 - Thermal and Moisture Protection | D9: ='GWP Project Summary'!$H$29 -> 
B10: 39-184-195 | C10: 06 - Wood/Plastics/Composites | D10: ='GWP Project Summary'!$H$24 -> 
B11: blue-darker (32-150-159) | C11: 05 - Metals | D11: ='GWP Project Summary'!$H$19 -> 
B12: 27-127-135 | C12: 04 - Masonry | D12: ='GWP Project Summary'!$H$14 ->  | E12: =$D$6 -> 
B13: blue-darkest (23-108-115) | C13: 03 - Concrete | D13: ='GWP Project Summary'!$H$9 ->  | E13: =SUM($D$7:$D$13) -> 
C14: total | D14: =SUM($D$5:$D$13) ->  | E14: =SUM($E$5:$E$13) -> 
B17: Project Embodied Carbon (Interior)
B18: GWP Summary tab
C19: GWP new vs salvaged
B20: black dash | C20: Salvaged material | D20: ='GWP Project Summary'!$P$63 -> 
B21: blue-darkest (23-108-115) | C21: New material | D21: ='GWP Project Summary'!$P$62 -> 
C23: GWP per group
B24: green - lightest (228-235-194) | C24: Furniture | D24: ='GWP Project Summary'!$R$56 ->  | E24: =ROUND('GWP Project Summary'!$R$56,3) -> 
B25: green (175-195-70) | C25: Casework | D25: ='GWP Project Summary'!$R$51 ->  | E25: =ROUND('GWP Project Summary'!$R$51,3) -> 
B26: blue-darkest (23-108-115) | C26: Construction Material | D26: ='GWP Project Summary'!$R$46 ->  | E26: =ROUND('GWP Project Summary'!$R$46,3) -> 
D27: =SUM($D$24:$D$26) ->  | E27: =SUM($D$24:$D$26) -> 
C29: GWP new vs salvaged Summary
B30: black dash | C30: salvaged furniture | D30: ='GWP Project Summary'!$R$55 ->  | E30: =ROUND('GWP Project Summary'!$R$55,3) -> 
B31: green - lightest (228-235-194) | C31: new furniture | D31: ='GWP Project Summary'!$R$54 ->  | E31: =ROUND('GWP Project Summary'!$R$54,3) ->  | F31: =ROUND(SUM($E$30:$E$31),3) -> 
B32: black dash | C32: salvaged casework | D32: ='GWP Project Summary'!$R$50 ->  | E32: =ROUND('GWP Project Summary'!$R$50,3) -> 
B33: green (175-195-70) | C33: new casework | D33: ='GWP Project Summary'!$R$49 ->  | E33: =ROUND('GWP Project Summary'!$R$49,3) ->  | F33: =ROUND(SUM($E$32:$E$33),3) -> 
B34: black dash | C34: salvaged construction material | D34: ='GWP Project Summary'!$R$45 ->  | E34: =ROUND('GWP Project Summary'!$R$45,3) -> 
B35: blue-darkest (23-108-115) | C35: new construction material | D35: ='GWP Project Summary'!$R$44 ->  | E35: =ROUND('GWP Project Summary'!$R$44,3) ->  | F35: =ROUND(SUM($E$34:$E$35),3) -> 
C36: total | D36: =SUM($D$30:$D$35) ->  | E36: =SUM($E$30:$E$35) ->  | F36: =SUM($F$30:$F$35) -> 
C38: Construction Material Breakdown
B39: black dash | C39: salvaged furniture | D39: ='GWP Project Summary'!$R$55 ->  | E39: =ROUND('GWP Project Summary'!$R$55,3) ->  | F39: =D39+D41+D43 ->  | G39: total Salvaged
B40: green - lightest (228-235-194) | C40: new furniture | D40: ='GWP Project Summary'!$R$54 ->  | E40: =ROUND('GWP Project Summary'!$R$54,3) ->  | F40: =D40+D42+SUM(D44:D50) ->  | G40: total new material
B41: black dash | C41: salvaged casework | D41: ='GWP Project Summary'!$R$50 ->  | E41: =ROUND('GWP Project Summary'!$R$50,3) ->  | F41: =SUM($F$39:$F$40) ->  | G41: total
B42: green (175-195-70) | C42: new casework | D42: ='GWP Project Summary'!$R$49 ->  | E42: =ROUND('GWP Project Summary'!$R$49,3) -> 
B43: black dash | C43: Salvaged | D43: ='GWP Project Summary'!$R$45 ->  | E43: =ROUND('GWP Project Summary'!$R$45,3) -> 
B44: blue-lightest (231-249-250) | C44: 09 - Finishes | D44: ='GWP Project Summary'!$R$39 ->  | E44: =ROUND('GWP Project Summary'!$R$39,3) -> 
B45: blue-lighter (170-237-240) | C45: 08 - Openings and Glazing | D45: ='GWP Project Summary'!$R$34 ->  | E45: =ROUND('GWP Project Summary'!$R$34,3) -> 
B46: blue (80-210-220) | C46: 07 - Thermal and Moisture Protection | D46: ='GWP Project Summary'!$R$29 ->  | E46: =ROUND('GWP Project Summary'!$R$29,3) -> 
B47: 39-184-195 | C47: 06 - Wood/Plastics/Composites | D47: ='GWP Project Summary'!$R$24 ->  | E47: =ROUND('GWP Project Summary'!$R$24,3) -> 
B48: blue-darker (32-150-159) | C48: 05 - Metals | D48: ='GWP Project Summary'!$R$19 ->  | E48: =ROUND('GWP Project Summary'!$R$19,3) -> 
B49: 27-127-135 | C49: 04 - Masonry | D49: ='GWP Project Summary'!$R$14 ->  | E49: =ROUND('GWP Project Summary'!$R$14,3) -> 
B50: blue-darkest (23-108-115) | C50: 03 - Concrete | D50: ='GWP Project Summary'!$R$9 ->  | E50: =ROUND('GWP Project Summary'!$R$9,3) ->  | F50: =ROUND(SUM($D$44:$D$50),3) ->  | G50: total new const. mat.
C51: total | D51: =SUM($D$39:$D$50) ->  | E51: =SUM($E$39:$E$50) -> 

Sheet Notes
B2: Updated 06/28/2023
B5: AIA Framework for Design Excellence: | E5: https://www.aia.org/resources/6077668-framework-for-design-excellence
B6: COTE Super Spreadsheet: | E6: https://www.aia.org/resources/77561-sustainability
B7: Join the AIA 2030 Commitment: | E7: https://www.aia.org/resources/202041-the-2030-commitment
B8: Take the AIA Materials Pledge: | E8: https://www.aia.org/pages/6351155-materials-pledge
B11: Abbreviation list
B12: ASE | D12: Annual Sunlight Exposure
B13: BTU | D13: British Thermal Unit
B14: CBPB | D14: Cement Bonded Particle Board (example: VIROC)
B15: CLF | D15: Carbon Leadership Forum
B16: CO2 | D16: Carbon Dioxide
B17: CO2e | D17: Carbon Dioxide equivalent
B18: DA | D18: Daylight Autonomy
B19: DDx | D19: Design Data Exchange
B20: EC | D20: Embodied Carbon
B21: EPD | D21: Environmental Product Declarations
B22: EUI | D22: Energy Use Intensity
B23: GSF | D23: Gross square footage
B24: GWP | D24: Global Warming Potential
B25: kWh | D25: Kilowatt-Hour
B26: LBC | D26: Living Building Challenge
B27: LCA | D27: Life Cycle Analysis
B28: LPD | D28: Lighting Power Density
B29: QTO | D29: Quantity Takeoff
B30: sDA | D30: Spatial Daylight Autonomy
B31: SF | D31: Square Footage
B32: W/sf | D32: Watt per Square Foot
B33: WFB | D33: Wood Fiber Board (Color-thru MDF) example: INTERLAM (FORESCOLOR)

Sheet EPD Sources
B2: Databases
B3: Databases | C3: Note | D3: Website
B4: EPD Library International | C4: Excellent source, filter by region | D4: EPD Library | EPD International (environdec.com)
B5: EPD Registry | C5: Outside of US, minimal database | D5: The EPD Registry™ | Digital EPD | EPD Databases | EPD for World Construction Products and Materials
B6: LCA Database | C6: Digital EPD's, no product image | D6: Global Construction Products EPD / LCA Databases for Sustainable Buildings | Digital EPD | LCA Database
B7: Mindful Materials | C7: Has variety of other certifications | D7: mindful MATERIALS (origin.build)
B8: Norwegian EPD database | C8: A lot of sofa & lounge chairs | D8: Furniture - EPD Norge (epd-norge.no)
B9: NSF International | C9: Herman Miller, Knoll, Teknion | D9: Listing Category Search Page | NSF International
B10: SCS Global Services | C10: Allsteel, Gunlocke, KI | D10: Certified Green Products Guide | SCS Global Services
B11: Spot | C11: Minimal furniture EPD's | D11: https://spot.ul.com/
B13: Manufacturers
B14: Manufacturer | C14: Website | D14: EPD
B15: Allsteel | C15: Allsteel (allsteeloffice.com) | D15: SCS Global Services Database
B16: Andreu World | C16: https://www.andreuworld.com/ | D16: no EPDs for now, but have other certifications
B17: Arper - Italy | C17: Arper: Designer Chairs, Tables and Accessories - Arper USA | D17: EPD can be found here
B18: Benchmark Furnitures - UK | C18: Welcome to Benchmark (benchmarkfurniture.com) | D18: Environmental Product Declarations (benchmarkfurniture.com)
B19: Emeco | C19: https://www.emeco.net/
B20: Fora Form - Norway | C20: Fora Form | Home | D20: lounge chairs and sofa EPDs
B21: Framery Acoustics - Finland | C21: https://www.frameryacoustics.com/en/ | D21: EPD can be downloaded from here
B22: Gunlocke | C22: Gunlocke-Office Furniture-Wood Casegoods-Desking-Seating-Conferencing | | D22: SCS Global Services Database
B23: Haworth | C23: https://www.haworth.com/na/en.html | D23: mostly have EPDs with LCA that can be downloaded under each product
B24: Herman Miller | C24: Herman Miller - Modern Furniture for the Office and Home | D24: 17 Environmental Product Declaration (EPD) Products | Herman Miller (ecomedes.com)
B25: Keillhauer | C25: https://keilhauer.com/ | D25: no EPDs for now, but have other certifications
B26: KI | C26: KI: The Trusted Expert for Contract Furniture Solutions | KI | D26: SCS Global Services Database
B27: Knoll | C27: Knoll - Modern Furniture Design for the Office & Home | D27: https://www.knoll.com/design-plan/resources/environment
B28: Koleksiyon - Turkey | C28: Koleksiyon - Office & Contract Furniture, Accessories, Designs | D28: EPD can be downloaded from here
B29: Magis Design - Italy | C29: https://www.magisdesign.com/ | D29: EPD can be downloaded from here
B30: Mark Products - UK | C30: http://www.markproduct.com/ | D30: EPD can be downloaded from here
B31: Mattiazzi - Sweden (Foster + Partners designed chairs) | C31: Home - Mattiazzi | D31: EPD can be downloaded from here
B32: Nowystyl - Poland | C32: Nowy Styl | D32: More than 20 products by Nowy Styl with the EPD - News
B33: Steelcase | C33: Steelcase - Office Furniture Solutions, Education & Healthcare Furniture | D33: Steelcase EPDs can be downloaded here (temp folder)
B34: Teknion - Canada | C34: Homepage (teknion.com) | D34: Listing Category Search Page | NSF International

Sheet Tally Casework Outputs
B1: updated 10/07/2024
B3: Revit modeled dimensions ft2 | P3: Base cabinet | Q3: GWP, kg CO2eq/lf | S3: Upper cabinet | T3: GWP, kg CO2eq/lf | V3: Tall cabinet | W3: GWP, kg CO2eq/lf | Y3: Countertop | Z3: GWP, kg CO2eq/lf
C4: Base | D4: Upper | E4: Tall | F4: Counter | P4: N/A | Q4: 0.00 | S4: N/A | T4: 0.00 | V4: N/A | W4: 0.00 | Y4: N/A | Z4: 0.00
B5: Back | C5: 5.65 | D5: 4.90 | E5: 13.55 | P5: PLY | Q5: =L22 -> 4.2 | S5: PLY | T5: =M22 -> 3.0 | V5: PLY | W5: =N22 -> 9.8 | Y5: HPL w/plywood substrate | Z5: =O23 -> 1.2
B6: Side | C6: =5.65*2 -> 11.30 | D6: =2.51*2 -> 5.02 | E6: =13.66*2 -> 27.32 | P6: HPL w/plywood substrate | Q6: =L23 -> 8.5 | S6: HPL w/plywood substrate | T6: 6.1 | V6: HPL w/plywood substrate | W6: 20.0 | Y6: LINO w/plywood substrate | Z6: =O25 -> 1.2
B7: Face | C7: 5.17 | D7: =2.45*2 -> 4.90 | E7: 13.17 | F7: 4.13 | P7: OSB | Q7: 6.4 | S7: OSB | T7: 4.6 | V7: OSB | W7: 15.2 | Y7: MDF | Z7: =O26 -> 1.7
B8: Interior | C8: 3.52 | D8: =1.61*2 -> 3.22 | E8: =3.18*5 -> 15.90 | P8: LINO w/plywood substrate | Q8: 8.9 | S8: LINO w/plywood substrate | T8: 6.4 | V8: LINO w/plywood substrate | W8: 21.0 | Y8: SOLID WOOD | Z8: =O27 -> 1.9
B9: Bottom | C9: 3.63 | D9: =1.77*2 -> 3.54 | P9: MDF | Q9: 12.4 | S9: MDF | T9: 9.0 | V9: MDF | W9: 29.3 | Y9: WOOD VENEER w/particleboard substrate | Z9: =O29 -> 3.3
B10: Front lower | C10: 0.67 | E10: 0.67 | P10: SOLID WOOD | Q10: 13.6 | S10: SOLID WOOD | T10: 9.8 | V10: SOLID WOOD | W10: 32.1 | Y10: PORCELAIN w/MDF substrate | Z10: =O30 -> 5.7
B11: Total | C11: =SUM(C5:C10) -> 29.94 | D11: =SUM(D5:D10) -> 21.58 | E11: 70.61 | F11: 4.13 | P11: CEMENT BONDED PARTICLEBOARD | Q11: 21.3 | S11: CEMENT BONDED PARTICLEBOARD | T11: 15.4 | V11: CEMENT BONDED PARTICLEBOARD | W11: 50.3 | Y11: CONCRETE | Z11: =O34 -> 5.72
P12: WOOD VENEER w/particleboard subst. | Q12: 23.9 | S12: WOOD VENEER w/particleboard subst. | T12: 17.2 | V12: WOOD VENEER w/particleboard subst. | W12: 56.4 | Y12: PAPER STONE w/plywood substrate | Z12: =O31 -> 6.0
B13: Edgebanding Tally, kgCO2e * | P13: PORCELAIN w/MDF substrate | Q13: 41.6 | S13: PORCELAIN w/MDF substrate | T13: 30.0 | V13: PORCELAIN w/MDF substrate | W13: 98.2 | Y13: RECYCLED GLASS, SINTERED | Z13: =O35 -> 6.216
C14: Base | D14: Upper | E14: Tall | F14: Counter | P14: PAPER STONE w/plywood substrate | Q14: 43.7 | S14: PAPER STONE w/plywood substrate | T14: 31.5 | V14: PAPER STONE w/plywood substrate | W14: 103.0 | Y14: BUTCHER BLOCK | Z14: 7.50
C15: =65.72+17.59 -> 83.31 | D15: =97.53+8.8 -> 106.33 | E15: =154.08+18.31 -> 172.39 | F15: 35.04 | P15: CHPL w/particleboard subst. | Q15: 73.5 | S15: CHPL w/particleboard subst. | T15: 53.0 | V15: CHPL w/particleboard subst. | W15: 173.3 | Y15: NATURAL STONE | Z15: 8.97
Y16: 1/2" SINTERED STONE | Z16: 9.01
Y17: STAINLESS w/plywood substrate | Z17: 9.88
Y18: 3/4" ENGINEERED STONE w/plywood substrate | Z18: 9.93
Y19: CHPL w/PARTICLEBOARD | Z19: =O32 -> 10.1
B20: EPD DATA + TALLY, kgCO2e per | G20: Total GWP Result 2024 | L20: 1LF Calculated Result 2024 | Y20: 1 1/4" ENGINEERED STONE w/plywood substrate | Z20: =O41 -> 12.07
C21: Source | D21: m2 | E21: ft2 | G21: Base | H21: Upper | I21: Tall | J21: Counter | L21: Base | M21: Upper | N21: Tall | O21: Counter | Y21: SOLID SURFACE | Z21: =O43 -> 14.39
B22: PLY | C22: EPD | D22: 3.0 | E22: =D22/10.764 -> 0.3 | G22: =$C$11*E22 -> 8.3 | H22: =$D$11*E22 -> 6.0 | I22: =$E$11*E22 -> 19.7 | J22: X | L22: =G22/2 -> 4.2 | M22: 3.0 | N22: 9.8 | O22: x | Y22: 3/4" SINTERED STONE | Z22: =O42 -> 15.01
B23: HPL w/plywood substrate | C23: EPD AVERAGE | D23: 6.1 | E23: =D23/10.764 -> 0.6 | G23: =$C$11*E23 -> 17.0 | H23: =$D$11*E23 -> 12.2 | I23: =$E$11*E23 -> 40.0 | J23: =F11*E23 -> 2.3 | L23: 8.5 | M23: 6.1 | N23: 20.0 | O23: =J23/2 -> 1.2 | Y23: 1-1/8" SINTERED STONE | Z23: =O44 -> 22.51
B24: OSB | C24: EPD | D24: 4.6 | E24: 0.4 | G24: 12.9 | H24: 9.3 | I24: 30.3 | J24: X | L24: 6.4 | M24: 4.6 | N24: 15.2 | O24: x
B25: LINO w/plywood substrate | C25: EPD | D25: 6.4 | E25: 0.6 | G25: 17.8 | H25: 12.8 | I25: 42.0 | J25: =$F$11*E25 -> 2.5 | L25: 8.9 | M25: 6.4 | N25: 21.0 | O25: =J25/2 -> 1.2
B26: MDF | C26: EPD | D26: 8.9 | E26: 0.8 | G26: 24.9 | H26: 17.9 | I26: 58.7 | J26: =$F$11*E26 -> 3.4 | L26: 12.4 | M26: 9.0 | N26: 29.3 | O26: =J26/2 -> 1.7
B27: SOLID WOOD | C27: EPD | D27: 9.8 | E27: 0.9 | G27: 27.2 | H27: 19.6 | I27: 64.2 | J27: =$F$11*E27 -> 3.8 | L27: 13.6 | M27: 9.8 | N27: 32.1 | O27: =J27/2 -> 1.9
B28: CEMENT BONDED PARTICLEBOARD | C28: EPD | D28: 15.3 | E28: 1.4 | G28: 42.7 | H28: 30.8 | I28: 100.7 | J28: x | L28: 21.3 | M28: 15.4 | N28: 50.3 | O28: x
B29: WOOD VENEER w/particleboard subst. | C29: EPD | D29: 17.2 | E29: 1.6 | G29: 47.8 | H29: 34.5 | I29: 112.8 | J29: =$F$11*E29 -> 6.6 | L29: 23.9 | M29: 17.2 | N29: 56.4 | O29: =J29/2 -> 3.3
B30: PORCELAIN w/MDF substrate | C30: EPD | D30: =21+D26 -> 29.9 | E30: 2.8 | G30: 83.3 | H30: 60.0 | I30: 196.4 | J30: =$F$11*E30 -> 11.5 | L30: 41.6 | M30: 30.0 | N30: 98.2 | O30: =J30/2 -> 5.7
B31: PAPER STONE w/plywood substrate | C31: EPD | D31: 31.4 | E31: 2.9 | G31: 87.3 | H31: 63.0 | I31: 206.0 | J31: =$F$11*E31 -> 12.0 | L31: 43.7 | M31: 31.5 | N31: 103.0 | O31: =J31/2 -> 6.0
B32: CHPL w/particleboard subst. | C32: EPD | D32: 52.9 | E32: 4.9 | G32: 147.0 | H32: 106.0 | I32: 346.7 | J32: =$F$11*E32 -> 20.3 | L32: 73.5 | M32: 53.0 | N32: 173.3 | O32: =J32/2 -> 10.1
B34: CONCRETE | C34: EPD+TALLY | D34: 29.8 | E34: 2.8 | J34: =$F$11*E34 -> 11.4 | O34: =J34/2 -> 5.7
B35: RECYCLED GLASS, SINTERED | C35: EPD | D35: 32.4 | E35: =D35/10.764 -> 3.0 | J35: 12.4 | O35: 6.2
B36: BUTCHER'S BLOCK | C36: TALLY | D36: 39.1 | E36: =D36/10.764 -> 3.6 | J36: 15.0 | O36: 7.5
B37: NATURAL STONE | C37: EPD | D37: 46.8 | E37: 4.3 | J37: 17.9 | O37: 9.0
B38: 1/2" SINTERED STONE | C38: EPD | D38: 46.9 | E38: =D38/10.764 -> 4.4 | J38: 18.0 | O38: 9.0
B39: STAINLESS w/plywood substrate | C39: EPD | D39: 51.5 | E39: =D39/10.764 -> 4.8 | J39: 19.8 | O39: 9.9
B40: 3/4" ENGINEERED STONE w/plywood substrate | C40: EPD | D40: 51.7 | E40: 4.8 | J40: 19.9 | O40: 9.9
B41: 1 1/4" ENGINEERED STONE w/plywood substrate | C41: EPD | D41: 62.9 | E41: 5.8 | J41: 24.1 | O41: 12.1
B42: 3/4" SINTERED STONE | C42: EPD | D42: 78.2 | E42: 7.3 | J42: 30.0 | O42: 15.0
B43: SOLID SURFACE | C43: EPD | D43: 75.0 | E43: =D43/10.764 -> 7.0 | J43: 28.8 | O43: 14.4
B44: 1 1/8" SINTERED STONE | C44: EPD | D44: 117.4 | E44: 10.9 | J44: 45.0 | O44: 22.5

Sheet Building Type Benchmarks
B2: Building Type | F2: Energy Benchmarking | I2: Carbon Benchmarking | O2: Embodied Carbon Benchmarking | Q2: Water Benchmarking | S2: Building type aggregates
I3: Fuel Breakdown Table: lbs. CO2/kBtu for each fuel source *Assume natural gas
J5: 0.36 | K5: 0.12 | L5: 0.16 | M5: =K5 -> 0.12
B6: Primary Use | C6: Secondary Use | D6: Tertiary Use | E6: All Uses | F6: Building Type | G6: EUI | H6: LPD | I6: Building Category (Carbon) | J6: Electricity | K6: Natural gas | L6: Fuel oil | M6: District heat* | N6: Benchmark Carbon Lbs./sf/yr | O6: Building Category (emboded carbon) | P6: Lbs. CO2/sf | Q6: Building Category (Water) | R6: Water Use Intensity (Gal/sf/yr) | S6: Carbon Breakdown | T6: EUI Breakdown | U6: Water Breakdown | V6: Embodied carbon | W6: LPD Breakdown
B9: =IF(#REF!=$F9,#REF!,0) ->  | C9: =IF(#REF!=$F9,#REF!,0) ->  | D9: =IF(#REF!=$F9,#REF!,0) ->  | E9: =SUM(B9:D9) ->  | F9: Bank | G9: 77.00 | H9: 1.0 | I9: Office | J9: 70% | K9: 23% | L9: 1% | M9: 6% | N9: =(G9*J9*$F$51)+(G9*K9*$G$51)+(G9*L9*$H$51)+(G9*M9*$I$51) -> 0.0 | O9: Commercial | P9: 67 | Q9: Office | R9: 14.6 | S9: =N9*E9 ->  | T9: =E9*G9 ->  | U9: =E9*R9 ->  | V9: =P9*E9 ->  | W9: =E9*H9 -> 
B10: =IF(#REF!=$F10,#REF!,0) ->  | C10: =IF(#REF!=$F10,#REF!,0) ->  | D10: =IF(#REF!=$F10,#REF!,0) ->  | F10: Bar / night club | G10: 52.00 | H10: 1.2 | I10: Public assembly | J10: 57% | K10: 28% | L10: 1% | M10: 13% | N10: =(G10*J10*$F$51)+(G10*K10*$G$51)+(G10*L10*$H$51)+(G10*M10*$I$51) -> 0.0 | O10: Commercial | P10: 67 | Q10: Public Assembly | R10: 25.7 | S10: =N10*E10 ->  | T10: =E10*G10 -> 
B11: =IF(#REF!=$F11,#REF!,0) ->  | C11: =IF(#REF!=$F11,#REF!,0) ->  | D11: =IF(#REF!=$F11,#REF!,0) ->  | F11: Education - College / University | G11: 120.00 | H11: 1.2 | I11: Education | J11: 54% | K11: 35% | L11: 3% | M11: 0% | N11: 0.0 | O11: Educational | P11: 96 | Q11: Education | R11: 14.6
B12: =IF(#REF!=$F12,#REF!,0) ->  | C12: =IF(#REF!=$F12,#REF!,0) ->  | D12: =IF(#REF!=$F12,#REF!,0) ->  | F12: Convention Center | G12: 66.00 | H12: 1.1 | I12: Public assembly | J12: 57% | K12: 28% | L12: 1% | M12: 13% | N12: 0.0 | O12: Commercial | P12: 67 | Q12: Public Assembly | R12: 25.7
B13: =IF(#REF!=$F13,#REF!,0) ->  | C13: =IF(#REF!=$F13,#REF!,0) ->  | D13: =IF(#REF!=$F13,#REF!,0) ->  | F13: Courthouse | G13: 118.00 | H13: 1.2 | I13: Office | J13: 70% | K13: 23% | L13: 1% | M13: 6% | N13: 0.0 | O13: Commercial | P13: 67 | Q13: Office | R13: 14.6
B14: =IF(#REF!=$F14,#REF!,0) ->  | C14: =IF(#REF!=$F14,#REF!,0) ->  | D14: =IF(#REF!=$F14,#REF!,0) ->  | F14: Education - K-12 School | G14: 75.00 | H14: 1.2 | I14: Education | J14: 54% | K14: 35% | L14: 3% | M14: 0% | N14: 0.0 | O14: Educational | P14: 96 | Q14: Education | R14: 14.6
B15: =IF(#REF!=$F15,#REF!,0) ->  | C15: =IF(#REF!=$F15,#REF!,0) ->  | D15: =IF(#REF!=$F15,#REF!,0) ->  | F15: Education - Other | G15: 76.00 | H15: 1.2 | I15: Education | J15: 54% | K15: 35% | L15: 3% | M15: 0% | N15: 0.0 | O15: Educational | P15: 96 | Q15: Education | R15: 14.6
B16: =IF(#REF!=$F16,#REF!,0) ->  | C16: =IF(#REF!=$F16,#REF!,0) ->  | D16: =IF(#REF!=$F16,#REF!,0) ->  | F16: Education - Preschool | G16: 75.00 | H16: 1.2 | I16: Education | J16: 54% | K16: 35% | L16: 3% | M16: 0% | N16: 0.0 | O16: Educational | P16: 96 | Q16: Education | R16: 14.6
B17: =IF(#REF!=$F17,#REF!,0) ->  | C17: =IF(#REF!=$F17,#REF!,0) ->  | D17: =IF(#REF!=$F17,#REF!,0) ->  | F17: Food - Fast Food | G17: 534.00 | H17: 1.5 | I17: Food service | J17: 54% | K17: 44% | L17: 0% | M17: 0% | N17: 0.0 | O17: Commercial | P17: 67 | Q17: Restaurant** | R17: 215.0
B18: =IF(#REF!=$F18,#REF!,0) ->  | C18: =IF(#REF!=$F18,#REF!,0) ->  | D18: =IF(#REF!=$F18,#REF!,0) ->  | F18: Food - Grocery Store | G18: 213.00 | H18: 1.5 | I18: Food sales | J18: 79% | K18: 21% | L18: 0% | M18: 0% | N18: 0.0 | O18: Commercial | P18: 67 | Q18: Grocery Store | R18: 23.7
B19: =IF(#REF!=$F19,#REF!,0) ->  | C19: =IF(#REF!=$F19,#REF!,0) ->  | D19: =IF(#REF!=$F19,#REF!,0) ->  | F19: Food - Restaurant | G19: 302.00 | H19: 1.5 | I19: Food service | J19: 54% | K19: 44% | L19: 0% | M19: 0% | N19: 0.0 | O19: Commercial | P19: 67 | Q19: Restaurant** | R19: 215.0
B20: =IF(#REF!=$F20,#REF!,0) ->  | C20: =IF(#REF!=$F20,#REF!,0) ->  | D20: =IF(#REF!=$F20,#REF!,0) ->  | F20: Food - Sales | G20: 225.00 | H20: 1.5 | I20: Food sales | J20: 79% | K20: 21% | L20: 0% | M20: 0% | N20: 0.0 | O20: Commercial | P20: 67 | Q20: Grocery Store* | R20: 23.7
B21: =IF(#REF!=$F21,#REF!,0) ->  | C21: =IF(#REF!=$F21,#REF!,0) ->  | D21: =IF(#REF!=$F21,#REF!,0) ->  | F21: Food - Service | G21: 351.00 | H21: 1.5 | I21: Food service | J21: 54% | K21: 44% | L21: 0% | M21: 0% | N21: 0.0 | O21: Commercial | P21: 67 | Q21: Restaurant** | R21: 215.0
B22: =IF(#REF!=$F22,#REF!,0) ->  | C22: =IF(#REF!=$F22,#REF!,0) ->  | D22: =IF(#REF!=$F22,#REF!,0) ->  | F22: Laboratory | G22: 370.00 | H22: 1.4 | I22: Inpatient | J22: 51% | K22: 37% | L22: 3% | M22: 9% | N22: 0.0 | O22: Educational | P22: 96 | Q22: Inpatient | R22: 49.6
B23: =IF(#REF!=$F23,#REF!,0) ->  | C23: =IF(#REF!=$F23,#REF!,0) ->  | D23: =IF(#REF!=$F23,#REF!,0) ->  | F23: Library | G23: 104.00 | H23: 1.3 | I23: public assembly | J23: 57% | K23: 28% | L23: 1% | M23: 13% | N23: 0.0 | O23: Cultural/Institutional | P23: 92 | Q23: Public Assembly | R23: 25.7
B24: =IF(#REF!=$F24,#REF!,0) ->  | C24: =IF(#REF!=$F24,#REF!,0) ->  | D24: =IF(#REF!=$F24,#REF!,0) ->  | F24: Lodging - Hotel | G24: 94.00 | H24: 1.0 | I24: Lodging | J24: 54% | K24: 39% | L24: 1% | M24: 0% | N24: 0.0 | O24: Lodging | P24: 57 | Q24: Lodging | R24: 41.7
B25: =IF(#REF!=$F25,#REF!,0) ->  | C25: =IF(#REF!=$F25,#REF!,0) ->  | D25: =IF(#REF!=$F25,#REF!,0) ->  | F25: Lodging - Residence Hall | G25: 89.00 | H25: 1.0 | I25: Lodging | J25: 54% | K25: 39% | L25: 1% | M25: 0% | N25: 0.0 | O25: Lodging | P25: 57 | Q25: Lodging | R25: 41.7
B26: =IF(#REF!=$F26,#REF!,0) ->  | C26: =IF(#REF!=$F26,#REF!,0) ->  | D26: =IF(#REF!=$F26,#REF!,0) ->  | F26: Medical - Hospital | G26: 227.00 | H26: 1.2 | I26: Inpatient | J26: 51% | K26: 37% | L26: 3% | M26: 9% | N26: 0.0 | O26: Healthcare | P26: 75 | Q26: Inpatient | R26: 49.6
B27: =IF(#REF!=$F27,#REF!,0) ->  | C27: =IF(#REF!=$F27,#REF!,0) ->  | D27: =IF(#REF!=$F27,#REF!,0) ->  | F27: Medical - Office | G27: 59.00 | H27: 1.0 | I27: Health care | J27: 51% | K27: 37% | L27: 3% | M27: 9% | N27: 0.0 | O27: Healthcare | P27: 75 | Q27: Outpatient | R27: 15.6
B28: =IF(#REF!=$F28,#REF!,0) ->  | C28: =IF(#REF!=$F28,#REF!,0) ->  | D28: =IF(#REF!=$F28,#REF!,0) ->  | F28: Medical - Outpatient surgery | G28: 73.00 | H28: 1.2 | I28: Outpatient | J28: 67% | K28: 27% | L28: 0% | M28: 0% | N28: 0.0 | O28: Healthcare | P28: 76 | Q28: Outpatient | R28: 15.6
B29: =IF(#REF!=$F29,#REF!,0) ->  | C29: =IF(#REF!=$F29,#REF!,0) ->  | D29: =IF(#REF!=$F29,#REF!,0) ->  | F29: Meeting Hall | G29: 52.00 | H29: 1.2 | I29: public assembly | J29: 57% | K29: 28% | L29: 1% | M29: 13% | N29: 0.0 | O29: Civic Building | P29: 50 | Q29: Public Assembly | R29: 25.7
B30: =IF(#REF!=$F30,#REF!,0) ->  | C30: =IF(#REF!=$F30,#REF!,0) ->  | D30: =IF(#REF!=$F30,#REF!,0) ->  | F30: Movie Theater | G30: 95.00 | H30: 1.6 | I30: public assembly | J30: 57% | K30: 28% | L30: 1% | M30: 13% | N30: 0.0 | O30: Cultural/Institutional | P30: 92 | Q30: Public Assembly | R30: 25.7
B31: =IF(#REF!=$F31,#REF!,0) ->  | C31: =IF(#REF!=$F31,#REF!,0) ->  | D31: =IF(#REF!=$F31,#REF!,0) ->  | F31: Museum | G31: 95.00 | H31: 1.6 | I31: public assembly | J31: 57% | K31: 28% | L31: 1% | M31: 13% | N31: 0.0 | O31: Cultural/Institutional | P31: 92 | Q31: Public Assembly | R31: 25.7
B32: =IF(#REF!=$F32,#REF!,0) ->  | C32: =IF(#REF!=$F32,#REF!,0) ->  | D32: =IF(#REF!=$F32,#REF!,0) ->  | F32: Office | G32: 90.00 | H32: 1.0 | I32: Office | J32: 70% | K32: 23% | L32: 1% | M32: 6% | N32: 0.0 | O32: Commercial | P32: 67 | Q32: Office | R32: 14.6
B33: =IF(#REF!=$F33,#REF!,0) ->  | C33: =IF(#REF!=$F33,#REF!,0) ->  | D33: =IF(#REF!=$F33,#REF!,0) ->  | F33: Performing arts | G33: 95.00 | H33: 1.6 | I33: public assembly | J33: 57% | K33: 28% | L33: 1% | M33: 13% | N33: 0.0 | O33: Cultural/Institutional | P33: 92 | Q33: Public Assembly | R33: 25.7
B34: =IF(#REF!=$F34,#REF!,0) ->  | C34: =IF(#REF!=$F34,#REF!,0) ->  | D34: =IF(#REF!=$F34,#REF!,0) ->  | F34: Public Assembly | G34: 66.00 | H34: 1.1 | I34: public assembly | J34: 57% | K34: 28% | L34: 1% | M34: 13% | N34: 0.0 | O34: Civic Building | P34: 50 | Q34: Public Assembly | R34: 25.7
B35: =IF(#REF!=$F35,#REF!,0) ->  | C35: =IF(#REF!=$F35,#REF!,0) ->  | D35: =IF(#REF!=$F35,#REF!,0) ->  | F35: Public Safety - Police, fire, etc. | G35: 90.00 | H35: 1.0 | I35: Public safety | J35: 55% | K35: 31% | L35: 2% | M35: 0% | N35: 0.0 | O35: Civic Building | P35: 50 | Q35: Public order and safety | R35: 42.1
B36: =IF(#REF!=$F36,#REF!,0) ->  | C36: =IF(#REF!=$F36,#REF!,0) ->  | D36: =IF(#REF!=$F36,#REF!,0) ->  | F36: Recreation (Visitor Center) | G36: 66.00 | H36: 1.1 | I36: public assembly | J36: 57% | K36: 28% | L36: 1% | M36: 13% | N36: 0.0 | O36: Civic Building | P36: 50 | Q36: Public Assembly | R36: 25.7
B37: =IF(#REF!=$F37,#REF!,0) ->  | C37: =IF(#REF!=$F37,#REF!,0) ->  | D37: =IF(#REF!=$F37,#REF!,0) ->  | F37: Religious Worship | G37: 46.00 | H37: 1.3 | I37: Religious worship | J37: 47% | K37: 50% | L37: 3% | M37: 0% | N37: 0.0 | O37: Cultural/Institutional | P37: 92 | Q37: Religious Worship* | R37: 7.3
B38: =IF(#REF!=$F38,#REF!,0) ->  | C38: =IF(#REF!=$F38,#REF!,0) ->  | D38: =IF(#REF!=$F38,#REF!,0) ->  | F38: Residential - Assisted Living | G38: 124.00 | H38: 1.0 | I38: Multifamily | J38: 60% | K38: 35% | L38: 5% | M38: 0% | N38: 0.0 | O38: Lodging | P38: 57 | Q38: Senior Care* | R38: 60.2
B39: =IF(#REF!=$F39,#REF!,0) ->  | C39: =IF(#REF!=$F39,#REF!,0) ->  | D39: =IF(#REF!=$F39,#REF!,0) ->  | F39: Residential - Multifamily | G39: 79.00 | H39: 0.7 | I39: Multifamily | J39: 60% | K39: 35% | L39: 5% | M39: 0% | N39: 0.0 | O39: Multifamily mid-rise | P39: 56 | Q39: Multifamily Housing | R39: 42.0
B40: =IF(#REF!=$F40,#REF!,0) ->  | C40: =IF(#REF!=$F40,#REF!,0) ->  | D40: =IF(#REF!=$F40,#REF!,0) ->  | F40: Residential - Single family | G40: 37.50 | H40: 0.7 | I40: Single Family | O40: Single family detached | P40: 55 | Q40: Single family detached
B41: =IF(#REF!=$F41,#REF!,0) ->  | C41: =IF(#REF!=$F41,#REF!,0) ->  | D41: =IF(#REF!=$F41,#REF!,0) ->  | F41: Retail - Box Store | G41: 47.00 | H41: 1.5 | I41: Retail (other than mall) | J41: 77% | K41: 20% | L41: 2% | M41: 0% | N41: =(G41*J41*$F$51)+(G41*K41*$G$51)+(G41*L41*$H$51)+(G41*M41*$I$51) -> 0.0 | O41: Commercial | P41: 67 | Q41: Retail* | R41: 8.0
B42: =IF(#REF!=$F42,#REF!,0) ->  | C42: =IF(#REF!=$F42,#REF!,0) ->  | D42: =IF(#REF!=$F42,#REF!,0) ->  | F42: Retail - Convenience Store | G42: 192.00 | H42: 1.5 | I42: Retail (other than mall) | J42: 77% | K42: 20% | L42: 2% | M42: 0% | N42: 0.0 | O42: Commercial | P42: 67 | Q42: Retail* | R42: 8.0
B43: =IF(#REF!=$F43,#REF!,0) ->  | C43: =IF(#REF!=$F43,#REF!,0) ->  | D43: =IF(#REF!=$F43,#REF!,0) ->  | F43: Retail - General | G43: 72.00 | H43: 1.5 | I43: Retail (other than mall) | J43: 77% | K43: 20% | L43: 2% | M43: 0% | N43: 0.0 | O43: Commercial | P43: 67 | Q43: Retail* | R43: 8.0
B44: =IF(#REF!=$F44,#REF!,0) ->  | C44: =IF(#REF!=$F44,#REF!,0) ->  | D44: =IF(#REF!=$F44,#REF!,0) ->  | F44: Retail - Mall | G44: 107.00 | H44: 1.5 | I44: Enclosed and strip malls | J44: 66% | K44: 34% | L44: 0% | M44: 0% | N44: 0.0 | O44: Commercial | P44: 67 | Q44: Enclosed and strip malls | R44: 11.8
B45: =IF(#REF!=$F45,#REF!,0) ->  | C45: =IF(#REF!=$F45,#REF!,0) ->  | D45: =IF(#REF!=$F45,#REF!,0) ->  | F45: Self Storage | G45: 31.00 | H45: 0.8 | I45: Warehouse and storage | J45: 66% | K45: 32% | L45: 0% | M45: 0% | N45: 0.0 | O45: Commercial | P45: 67 | Q45: Warehouse and storage | R45: 3.4
B46: =IF(#REF!=$F46,#REF!,0) ->  | C46: =IF(#REF!=$F46,#REF!,0) ->  | D46: =IF(#REF!=$F46,#REF!,0) ->  | F46: Services - General | G46: 77.00 | H46: 1.4 | I46: Service | J46: 47% | K46: 45% | L46: 6% | M46: 0% | N46: 0.0 | O46: Commercial | P46: 67 | Q46: Mercantile | R46: 12.6
B47: =IF(#REF!=$F47,#REF!,0) ->  | C47: =IF(#REF!=$F47,#REF!,0) ->  | D47: =IF(#REF!=$F47,#REF!,0) ->  | F47: Warehouse | G47: 26.00 | H47: 0.8 | I47: Warehouse and storage | J47: 66% | K47: 32% | L47: 0% | M47: 0% | N47: 0.0 | O47: Commercial | P47: 67 | Q47: Warehouse and storage | R47: 3.4
B48: =IF(#REF!=$F48,#REF!,0) ->  | C48: =IF(#REF!=$F48,#REF!,0) ->  | D48: =IF(#REF!=$F48,#REF!,0) ->  | F48: Warehouse - Refrigerated | G48: 127.00 | H48: 0.8 | I48: Warehouse and storage | J48: 66% | K48: 32% | L48: 0% | M48: 0% | N48: 0.0 | O48: Commercial | P48: 67 | Q48: Warehouse and storage | R48: 3.4
D49: SUM | E49: =SUM(E9:E48) ->  | R49: SUM | S49: =SUM(S9:S48) ->  | T49: =SUM(T9:T48) ->  | U49: =SUM(U9:U48) ->  | V49: =SUM(V9:V48) ->  | W49: =SUM(W9:W48) -> 

Sheet Future phase (hidden)
B1: The metrics below are not intended to be asked at this time, but some may be added in the future
B2: ADDITIONAL PERFORMANCE METRICS
C3: Percent of indoor potable water reduction | D3: % | F3: https://www.usgbc.org/RESOURCES/INDOOR-WATER-USE-CALCULATOR
C4: Percent of stormwater managed on site | D4: %
C5: Percentage of occupied areas daylit | F5: Not sure we have a way to ask about daylighting that is simple
C6: Number of Bike racks
C7: Number of showers
C8: Parking Spaces provided
C9: Parking Spaces required by code
C10: Is potable water used for cooling? | D10: Y/N
C11: Is potable water used for irrigation | D11: Y/N
C12: Rainwater reclaimation? | D12: Y/N
C13: Stormwater Quality | D13: drop-down
C14: Predicted Gross EUI | D14: kBTU/SF/Year
C15: Actual Gross EUI | D15: kBTU/SF/Year
C16: Percent from Renewable Energy
C17: Lighting Power Density | D17: Watts/SF
C18: Window Wall Ratio
C19: Regularly occupied space - percent daylit
C20: What percentage have quality views?
C21: Do occupants control their lighting levels
C22: Number of EPD specd
C23: Percentage of construction waste diverted from landfill
C24: Total cost of Recycled, regional, with certifications (declare, cradle to Cradle)
B26: METRICS BEYOND SCOPE - SEE TOP TEN
C27: Occupants Communting by Alternative Transportation
C28: Predevelopment Development Vegetated
C29: Post Development Vegetated
C30: Percentage that is native
C31: Percentage that is turf
C32: ACOUSTICS
C33: VOC
C34: CO2
